{"text_format":"1","workbook":"xlsx","n_sheets":4,"sheets":["Cerere de Finantare","Anexa 1","Anexa 2","Anexa 3"],"not_rendered":{"charts":0,"images":1,"macros":1,"external_links":0,"defined_names":1,"comments":0,"pivot_tables":0},"unopened":[],"bounds":{"document_bytes":16777216,"sheet_cells":100000,"rows_first":2000,"rows_last":500,"rows_between":2000,"halvings":0,"cell_chars":16384,"cell_head_chars":4096},"cells_cut":0,"cells_raw":0,"read":"whole","date_system":"1900"}

{"sheet":"Cerere de Finantare","index":0,"n_rows":708,"n_cols":57,"rows_kept":708,"cut":false,"hidden":false,"merged":[[479,18,479,22],[479,23,479,40],[479,41,479,47],[479,48,479,54],[513,51,513,60],[514,0,514,3],[514,4,514,41],[514,42,514,50],[514,51,514,60],[519,0,519,3],[646,17,646,49],[646,50,646,60],[634,0,647,16],[480,41,480,47],[480,48,480,54],[480,55,480,60],[528,0,528,44],[501,0,501,3],[501,4,501,41],[501,42,501,50],[501,51,501,60],[502,0,502,3],[502,4,502,41],[502,42,502,50],[513,4,513,41],[513,42,513,50],[649,0,649,49],[650,0,650,49],[650,50,650,60],[652,0,652,49],[652,50,652,60],[2,55,2,59],[15,7,17,7],[15,9,17,10],[15,12,17,13],[16,15,17,18],[18,9,18,10],[18,11,18,12],[18,13,18,14],[18,15,18,16],[18,17,18,18],[18,19,18,20],[15,20,17,23],[16,27,17,28],[16,30,17,34],[492,0,492,60],[493,0,493,60],[522,0,522,3],[522,4,522,41],[522,42,522,50],[522,51,522,60],[521,0,521,3],[521,4,521,41],[479,55,479,60],[516,0,516,3],[480,0,480,2],[480,3,480,17],[480,18,480,22],[519,4,519,41],[519,42,519,50],[515,0,515,3],[515,4,515,41],[515,42,515,50],[515,51,515,60],[497,4,497,41],[497,42,497,50],[497,51,497,60],[498,0,498,3],[498,4,498,41],[498,42,498,50],[498,51,498,60],[494,0,494,60],[499,0,499,3],[499,4,499,41],[499,42,499,50],[499,51,499,60],[512,0,512,60],[508,0,508,41],[508,42,508,60],[507,51,507,60],[503,0,503,3],[503,4,503,41],[503,42,503,50],[503,51,503,60],[490,42,490,50],[490,51,490,60],[491,7,491,60],[481,41,481,47],[481,48,481,54],[481,55,481,60],[479,0,479,2],[500,0,500,3],[500,4,500,41],[500,42,500,50],[500,51,500,60],[495,0,495,60],[496,0,496,3],[496,4,496,41],[496,42,496,50],[496,51,496,60],[490,7,490,41],[488,7,488,41],[488,42,489,60],[489,7,489,41],[497,0,497,3],[469,0,469,41],[469,42,469,60],[484,23,484,40],[484,41,484,47],[484,48,484,54],[484,55,484,60],[475,48,475,54],[475,55,475,60],[476,0,476,2],[485,23,485,40],[485,41,485,47],[485,48,485,54],[476,3,476,17],[476,18,476,22],[476,23,476,40],[476,41,476,47],[481,0,481,2],[481,3,481,17],[481,18,481,22],[481,23,481,40],[466,0,466,3],[466,4,466,41],[466,42,466,50],[466,51,466,60],[467,0,467,41],[467,42,467,50],[467,51,467,60],[473,0,473,60],[485,55,485,60],[482,0,482,60],[483,0,483,22],[483,23,483,60],[484,0,484,22],[485,0,485,22],[480,23,480,40],[471,0,471,43],[479,3,479,17],[462,0,462,3],[462,4,462,41],[462,42,462,50],[462,51,462,60],[468,0,468,41],[468,42,468,50],[468,51,468,60],[463,0,463,3],[463,4,463,41],[463,42,463,50],[463,51,463,60],[464,0,464,3],[464,4,464,41],[464,42,464,50],[464,51,464,60],[465,0,465,3],[465,4,465,41],[465,42,465,50],[465,51,465,60],[459,0,459,3],[459,4,459,41],[459,42,459,50],[459,51,459,60],[460,0,460,3],[460,4,460,41],[460,42,460,50],[460,51,460,60],[461,0,461,60],[456,0,456,3],[456,4,456,41],[456,42,456,50],[456,51,456,60],[457,0,457,3],[457,4,457,41],[457,42,457,50],[457,51,457,60],[458,0,458,60],[454,0,454,3],[454,4,454,41],[454,42,454,50],[454,51,454,60],[455,0,455,3],[455,4,455,41],[455,42,455,50],[455,51,455,60],[452,0,452,3],[452,4,452,41],[452,42,452,50],[452,51,452,60],[453,0,453,3],[453,4,453,41],[453,42,453,50],[453,51,453,60],[439,0,439,42],[441,7,441,41],[442,7,442,41],[442,42,443,60],[443,7,443,41],[444,7,444,41],[444,42,444,50],[444,51,444,60],[450,0,450,41],[450,42,450,50],[450,51,450,60],[451,0,451,41],[451,42,451,50],[451,51,451,60],[445,7,445,60],[446,0,446,60],[447,0,447,60],[448,0,448,60],[449,0,449,3],[449,4,449,41],[449,42,449,60],[416,42,416,50],[417,42,417,50],[418,42,418,50],[419,42,419,50],[420,42,420,50],[421,42,421,50],[415,51,415,60],[416,51,416,60],[417,51,417,60],[418,51,418,60],[419,51,419,60],[420,51,420,60],[421,51,421,60],[416,0,416,3],[417,0,417,3],[418,0,418,3],[419,0,419,3],[420,0,420,3],[421,0,421,3],[415,4,415,41],[416,4,416,41],[417,4,417,41],[428,0,428,3],[428,42,428,50],[428,51,428,60],[428,4,428,41],[434,4,434,41],[401,42,401,50],[393,7,393,41],[393,42,393,50],[393,51,393,60],[394,7,394,60],[395,0,395,60],[396,0,396,60],[399,0,399,3],[399,4,399,41],[399,42,399,50],[399,51,399,60],[397,0,397,60],[398,0,398,3],[398,4,398,41],[398,42,398,50],[398,51,398,60],[400,0,400,3],[400,4,400,41],[400,42,400,50],[400,51,400,60],[401,51,401,60],[402,0,402,3],[402,4,402,41],[402,42,402,50],[402,51,402,60],[403,0,403,3],[403,4,403,41],[403,42,403,50],[403,51,403,60],[413,0,413,3],[413,4,413,41],[413,42,413,50],[414,0,414,3],[414,4,414,41],[413,51,413,60],[414,42,414,50],[414,51,414,60],[415,0,415,3],[415,42,415,50],[406,4,406,41],[412,42,412,50],[412,51,412,60],[412,0,412,3],[412,4,412,41],[424,0,424,3],[424,42,424,50],[424,51,424,60],[424,4,424,41],[427,4,427,41],[418,4,418,41],[419,4,419,41],[420,4,420,41],[421,4,421,41],[406,42,406,50],[406,51,406,60],[407,4,407,41],[407,42,407,50],[407,51,407,60],[404,0,404,3],[404,4,404,41],[404,42,404,50],[404,51,404,60],[405,4,405,41],[405,42,405,50],[405,51,405,60],[430,42,430,50],[430,51,430,60],[429,4,429,41],[430,4,430,41],[431,4,431,41],[432,4,432,41],[433,4,433,41],[432,42,432,50],[433,42,433,50],[432,51,432,60],[433,51,433,60],[431,0,431,3],[431,42,431,50],[431,51,431,60],[401,0,401,3],[401,4,401,41],[410,4,410,41],[410,42,410,50],[410,51,410,60],[411,4,411,41],[411,42,411,50],[411,51,411,60],[408,4,408,41],[408,42,408,50],[408,51,408,60],[409,0,409,3],[409,4,409,41],[409,42,409,50],[409,51,409,60],[427,0,427,3],[427,42,427,50],[427,51,427,60],[436,4,436,41],[436,42,436,50],[436,51,436,60],[437,0,437,41],[437,42,437,60],[426,4,426,41],[426,42,426,50],[426,51,426,60],[422,0,422,3],[422,4,422,41],[422,42,422,50],[422,51,422,60],[423,0,423,3],[423,4,423,41],[423,42,423,50],[423,51,423,60],[435,0,435,3],[435,4,435,41],[435,42,435,50],[435,51,435,60],[425,4,425,41],[425,42,425,50],[425,51,425,60],[434,0,434,3],[434,42,434,50],[434,51,434,60],[429,0,429,3],[429,42,429,50],[429,51,429,60],[430,0,430,3],[337,0,337,34],[337,35,337,43],[337,44,337,51],[337,52,337,60],[338,0,338,34],[338,35,338,43],[338,44,338,51],[338,52,338,60],[339,0,339,34],[339,35,339,43],[339,44,339,51],[390,7,390,41],[391,7,391,41],[391,42,392,60],[392,7,392,41],[331,52,331,60],[332,0,332,34],[332,35,332,43],[332,44,332,51],[332,52,332,60],[333,0,333,34],[333,35,333,43],[333,44,333,51],[333,52,333,60],[336,0,336,34],[336,35,336,43],[336,44,336,51],[336,52,336,60],[326,35,326,43],[355,0,355,34],[355,35,355,43],[355,44,355,51],[355,52,355,60],[356,0,356,34],[356,35,356,43],[356,44,356,51],[356,52,356,60],[357,0,357,34],[357,35,357,43],[357,44,357,51],[357,52,357,60],[358,0,358,34],[358,35,358,43],[358,44,358,51],[302,1,302,15],[317,0,317,34],[317,35,317,43],[317,44,317,51],[317,52,317,60],[321,0,321,34],[321,35,321,43],[321,44,321,51],[321,52,321,60],[323,0,323,34],[323,35,323,43],[323,44,323,51],[323,52,323,60],[322,0,322,34],[322,35,322,43],[322,44,322,51],[322,52,322,60],[304,44,304,51],[304,52,304,60],[305,0,305,60],[307,15,307,21],[307,22,307,27],[307,30,307,45],[307,47,307,56],[309,0,309,34],[309,35,309,43],[309,44,309,51],[309,52,309,60],[310,0,310,34],[310,35,310,43],[310,44,310,51],[310,52,310,60],[383,0,383,34],[383,35,383,43],[383,44,383,51],[383,52,383,60],[384,0,384,34],[384,35,384,43],[384,44,384,51],[384,52,384,60],[385,0,385,31],[385,35,385,42],[385,44,385,60],[386,0,386,34],[386,35,386,43],[386,44,386,60],[387,0,387,30],[387,35,387,43],[387,44,387,60],[379,0,379,34],[379,35,379,43],[379,44,379,51],[379,52,379,60],[380,0,380,34],[380,35,380,43],[380,44,380,51],[380,52,380,60],[381,0,381,13],[381,15,381,34],[381,35,381,43],[381,44,381,51],[381,52,381,60],[382,0,382,13],[382,15,382,34],[382,35,382,43],[382,44,382,51],[382,52,382,60],[374,0,374,34],[374,35,374,43],[374,44,374,51],[374,52,374,60],[375,0,375,34],[375,35,375,43],[375,44,375,51],[375,52,375,60],[376,0,376,34],[376,35,376,43],[376,44,376,51],[376,52,376,60],[377,0,377,34],[377,35,377,43],[377,44,377,51],[377,52,377,60],[378,0,378,34],[378,35,378,43],[378,44,378,51],[378,52,378,60],[369,0,369,34],[369,35,369,43],[369,44,369,51],[369,52,369,60],[370,0,370,34],[370,35,370,43],[370,44,370,51],[370,52,370,60],[371,0,371,34],[371,35,371,43],[371,44,371,51],[371,52,371,60],[372,0,372,34],[372,35,372,60],[373,0,373,34],[373,35,373,43],[373,44,373,51],[373,52,373,60],[364,0,364,34],[364,35,364,43],[364,44,364,51],[364,52,364,60],[365,0,365,34],[365,35,365,43],[365,44,365,51],[365,52,365,60],[366,0,366,34],[366,35,366,43],[366,44,366,51],[366,52,366,60],[367,0,367,17],[367,35,367,60],[368,0,368,34],[368,35,368,43],[368,44,368,51],[368,52,368,60],[353,0,353,34],[353,35,353,43],[353,44,353,51],[353,52,353,60],[354,0,354,34],[354,35,354,43],[354,44,354,51],[354,52,354,60],[362,0,362,34],[362,35,362,43],[362,44,362,51],[362,52,362,60],[361,0,361,34],[361,35,361,43],[361,44,361,51],[361,52,361,60],[363,0,363,34],[363,35,363,43],[363,44,363,51],[363,52,363,60],[359,0,359,34],[359,35,359,43],[359,44,359,51],[359,52,359,60],[360,0,360,34],[360,35,360,43],[360,44,360,51],[360,52,360,60],[358,52,358,60],[348,0,348,34],[348,35,348,43],[348,44,348,51],[348,52,348,60],[349,0,349,34],[349,35,349,43],[349,44,349,51],[349,52,349,60],[350,0,350,34],[350,35,350,43],[350,44,350,51],[350,52,350,60],[351,0,351,34],[351,35,351,43],[351,44,351,51],[351,52,351,60],[352,0,352,34],[352,35,352,43],[352,44,352,51],[352,52,352,60],[345,0,345,34],[345,35,345,43],[345,44,345,51],[345,52,345,60],[346,0,346,34],[346,35,346,43],[346,44,346,51],[346,52,346,60],[347,0,347,34],[347,35,347,43],[347,44,347,51],[347,52,347,60],[325,0,325,34],[325,35,325,43],[325,44,325,51],[325,52,325,60],[326,0,326,34],[334,35,334,43],[326,44,326,51],[326,52,326,60],[327,0,327,34],[327,35,327,43],[327,44,327,51],[327,52,327,60],[334,0,334,34],[334,44,334,51],[334,52,334,60],[343,0,343,24],[339,52,339,60],[342,0,342,34],[342,35,342,43],[342,44,342,51],[316,52,316,60],[318,0,318,34],[318,35,318,43],[318,44,318,51],[318,52,318,60],[319,0,319,34],[319,35,319,43],[319,44,319,51],[319,52,319,60],[320,0,320,34],[320,35,320,43],[320,44,320,51],[320,52,320,60],[324,0,324,34],[344,0,344,34],[344,35,344,43],[344,44,344,51],[344,52,344,60],[342,52,342,60],[340,0,340,34],[340,35,340,43],[340,44,340,51],[340,52,340,60],[341,0,341,34],[341,35,341,43],[341,44,341,51],[341,52,341,60],[335,44,335,51],[335,52,335,60],[331,0,331,34],[331,35,331,43],[331,44,331,51],[313,0,313,34],[313,35,313,43],[313,44,313,51],[313,52,313,60],[314,0,314,34],[314,35,314,43],[314,44,314,51],[314,52,314,60],[315,0,315,34],[315,35,315,43],[315,44,315,51],[315,52,315,60],[311,0,311,34],[311,35,311,43],[343,35,343,60],[328,0,328,34],[328,35,328,43],[328,44,328,51],[328,52,328,60],[329,0,329,34],[329,35,329,43],[329,44,329,51],[329,52,329,60],[330,0,330,34],[330,35,330,43],[330,44,330,51],[330,52,330,60],[335,0,335,34],[335,35,335,43],[316,0,316,34],[316,35,316,43],[316,44,316,51],[625,0,625,4],[625,5,625,58],[7,36,8,60],[13,36,21,60],[168,1,168,58],[167,1,167,58],[162,41,162,43],[303,0,303,34],[303,35,303,60],[304,0,304,34],[304,35,304,43],[33,1,33,45],[33,48,33,59],[324,35,324,43],[324,44,324,51],[324,52,324,60],[311,44,311,51],[311,52,311,60],[312,0,312,34],[312,35,312,43],[312,44,312,51],[312,52,312,60],[34,48,34,59],[100,33,100,43],[101,33,101,43],[107,1,107,24],[109,1,110,59],[120,30,120,52],[115,30,115,52],[157,1,157,41],[705,13,705,22],[705,23,705,34],[705,0,705,12],[703,43,703,46],[703,47,703,56],[707,0,707,7],[693,12,693,59],[695,12,695,59],[681,23,681,25],[681,26,681,36],[681,38,681,42],[681,43,681,59],[670,0,670,14],[671,0,671,14],[673,0,673,14],[675,0,675,4],[675,5,675,12],[675,14,675,17],[91,1,95,13],[83,1,87,13],[683,0,683,38],[683,40,683,59],[685,0,685,5],[687,0,687,19],[687,20,687,30],[685,6,685,30],[689,0,689,51],[689,52,689,59],[691,0,691,5],[691,6,691,59],[699,0,699,3],[699,4,699,14],[699,15,699,59],[701,0,701,60],[703,0,703,10],[703,12,703,27],[679,0,679,2],[679,3,679,6],[679,8,679,9],[679,10,679,12],[679,14,679,15],[679,16,679,17],[679,19,679,20],[679,21,679,23],[679,25,679,28],[679,30,679,36],[679,38,679,45],[679,47,679,56],[681,0,681,10],[681,11,681,21],[675,18,675,31],[675,33,675,37],[675,38,675,57],[677,0,677,4],[677,5,677,18],[677,21,677,23],[677,25,677,37],[677,39,677,42],[677,44,677,59],[671,15,671,59],[654,0,654,60],[655,0,655,60],[656,0,656,60],[657,0,657,60],[658,0,658,60],[659,0,659,60],[662,0,662,60],[663,0,663,60],[664,0,664,60],[665,0,665,60],[666,0,666,60],[667,0,667,60],[668,0,668,60],[669,0,669,14],[669,15,669,59],[653,0,653,60],[651,0,651,49],[651,50,651,60],[634,17,634,49],[635,17,635,49],[636,17,636,49],[637,17,637,49],[638,17,638,49],[639,17,639,49],[640,17,640,49],[634,50,634,60],[635,50,635,60],[636,50,636,60],[637,50,637,60],[638,50,638,60],[639,50,639,60],[640,50,640,60],[649,50,649,60],[648,0,648,49],[648,50,648,60],[641,17,641,49],[641,50,641,60],[642,17,642,49],[642,50,642,60],[643,17,643,49],[643,50,643,60],[644,17,644,49],[644,50,644,60],[645,17,645,49],[645,50,645,60],[631,0,631,60],[632,0,632,60],[633,0,633,60],[243,14,243,18],[243,19,243,41],[249,4,249,40],[247,19,247,41],[247,42,247,48],[247,49,247,55],[248,14,248,18],[248,19,248,41],[248,42,248,48],[248,49,248,55],[248,1,248,13],[243,42,243,48],[243,49,243,55],[250,0,300,59],[241,1,241,13],[242,1,242,13],[243,1,243,13],[244,1,244,13],[245,1,245,13],[246,1,246,13],[247,1,247,13],[241,14,241,18],[244,14,244,18],[247,14,247,18],[241,56,241,59],[242,56,242,59],[243,56,245,59],[246,56,248,59],[244,19,244,41],[244,42,244,48],[244,49,244,55],[245,14,245,18],[245,19,245,41],[245,42,245,48],[245,49,245,55],[246,14,246,18],[246,19,246,41],[246,42,246,48],[246,49,246,55],[241,19,241,41],[241,42,241,48],[241,49,241,55],[242,14,242,18],[242,19,242,41],[242,42,242,48],[242,49,242,55],[231,2,231,60],[232,2,232,60],[236,1,237,13],[236,14,236,55],[236,56,237,59],[237,14,237,18],[237,19,237,41],[237,42,237,48],[237,49,237,55],[238,1,238,13],[238,14,238,18],[238,19,238,41],[238,42,238,48],[238,49,238,55],[238,56,240,59],[239,1,239,13],[239,14,239,18],[239,19,239,41],[239,42,239,48],[239,49,239,55],[240,1,240,13],[240,14,240,18],[240,19,240,41],[240,42,240,48],[240,49,240,55],[217,2,217,56],[218,2,218,56],[220,2,220,27],[220,31,220,56],[221,2,221,27],[221,31,221,56],[210,1,210,23],[207,38,207,50],[208,38,208,50],[212,0,212,60],[214,2,214,27],[214,31,214,56],[215,31,215,56],[215,2,215,27],[208,1,208,13],[208,20,208,32],[230,0,230,60],[207,1,207,13],[207,20,207,32],[185,18,186,20],[206,1,206,9],[205,36,205,44],[202,1,202,37],[203,1,203,19],[203,22,203,39],[203,42,203,58],[204,1,204,19],[204,22,204,39],[204,42,204,58],[205,1,205,9],[206,12,206,27],[205,30,205,33],[205,12,205,27],[206,30,206,33],[206,36,206,45],[205,54,205,58],[205,48,205,51],[206,48,206,51],[206,54,206,58],[173,4,173,13],[173,16,173,23],[173,26,173,34],[172,47,174,57],[173,36,173,46],[176,0,176,60],[177,1,177,32],[170,3,171,13],[170,14,171,24],[170,25,171,35],[170,36,171,46],[170,47,170,57],[171,47,171,57],[185,28,186,34],[184,37,184,48],[185,37,186,48],[184,51,184,58],[185,51,186,58],[179,3,179,10],[180,3,180,16],[179,24,179,49],[184,4,184,15],[184,28,184,34],[185,4,185,6],[185,7,185,9],[185,10,185,15],[186,4,186,6],[186,7,186,9],[186,10,186,15],[184,18,184,20],[184,21,184,26],[185,21,186,26],[158,1,158,19],[158,22,158,39],[158,42,158,58],[159,1,159,19],[159,22,159,39],[159,42,159,58],[164,1,164,13],[165,1,165,13],[164,20,164,32],[165,20,165,32],[164,36,164,58],[165,36,165,58],[160,1,160,9],[160,52,160,58],[161,1,161,9],[161,52,161,58],[160,15,160,45],[161,15,161,45],[162,1,162,9],[163,1,163,9],[162,17,162,25],[163,17,163,25],[145,1,145,23],[145,28,145,54],[146,1,146,23],[146,28,146,54],[148,1,148,23],[148,28,148,54],[149,1,149,23],[149,28,149,54],[151,1,151,23],[151,28,151,54],[152,1,152,23],[152,28,152,54],[154,1,154,23],[154,28,154,54],[155,1,155,23],[155,28,155,54]],"merged_total":1607,"flags":["merged_cut"]}
[null,null,null,null,null,null,"MINISTERUL AGRICULTURII ŞI DEZVOLTĂRII RURALE"]
[null,null,null,null,null,null,"AGENŢIA PENTRU FINANŢAREA INVESTIŢIILOR RURALE"]
["ASOCIATIA GRUP DE ACTIUNE LOCALA ADA KALEH"]
[null,null,null,null,null,null,null,null,null,null,null,null,null,null,null,null,null,null,null,null,null,null,null,null,null,null,null,null,null,null,null,null,null,null,null,null,null,null,null,null,null,null,"SECŢIUNE GENERALĂ"]
[]
["DATE DE ÎNREGISTRARE",null,null,null,null,null,null,null,null,null,null,null,null,null,null,null,null,null,null,null,null,null,null,null,null,null,null,null,null,null,null,null,null,null,null,null,"NUME ŞI PRENUME DIRECTOR "]
[null,null,null,null,null,null,null,null,null,null,null,null,null,null,null,null,null,null,null,null,null,null,null,null,null,null,null,null,null,null,null,null,null,null,null,null,"OJFIR"]
["Se completează de către Agenția pentru Finanțarea Investițiilor Rurale -OFICIUL JUDETEAN"]
["Programul FEADR 2014-2020"]
[]
["CRFIR",null,null,null,null,null,null,null,null,null,null,null,null,null,null,null,null,null,null,null,null,null,null,null,null,null,null,null,null,null,null,null,null,null,null,null,"Semnătura Director OJFIR"]
[null,null,null,null,null,null,null,null,null,null,null,null,null,null,null,null,null,null,null,null,null,null,null,null,null,null,null,null,null,null,null,null,null,null,null,null,"Ştampila OJFIR"]
["Număr "]
["înregistrare"]
[]
[null,null,null,null,null,null,null,"Tip cerere de finanțare  ",null,"Codificare masură ",null,null,"Codificare sub-masura  ",null,null,null,null,null,null,null,"Nr. de referinta al  apelului de selectie "]
[null,null,null,null,null,null,null,null,null,null,null,null,null,null,null,"Cod decizie autorizare GAL  ",null,null,null,null,null,null,null,null,null,null,null,"Cod județ",null,null,"Număr de ordine în registrul cererilor de finanțare"]
[]
["Data Înregistrării"]
["Numele şi prenumele persoanei care înregistrează"]
["Semnătura:"]
["Data primirii cererii de finanţare la contractare:"]
["Se completează de către solicitant"]
["A PREZENTARE GENERALĂ"]
[]
[null,"A1 Măsura",null,null,null,null,null,null,null,null,"Sub-măsura 19.2"]
[null,null,null,null,null,null,null,null,null,null,"M3/6B  Dezvoltare Locala     "]
[]
[null,null,null,null,null,null,null,"Tip investitie:",null,null,null,null,null,null,null,null,null,"Crearea si modernizarea infrastructurii fizice de baza"]
[null,null,null,null,null,null,null,null,null,null,null,null,null,null,null,null,null,"Crearea si dezvoltarea serviciilor de baza"]
[null,null,null,null,null,null,null,null,null,null,null,null,null,null,null,null,null,"Protejarea si promovarea patrimoniului natural si cultural de interes local"]
[null,null,null,null,null,null,null,null,null,null,null,null,null,null,null,null,null,"Modernizarea institutiilor de cult"]
[]
[null,"Conţinutul cadru al documentaţiei tehnico-economice faza SF/DALI conform : "]
[null,"A2 Denumire solicitant:",null,null,null,null,null,null,null,null,null,null,null,null,null,null,null,null,null,null,null,null,null,null,null,null,null,null,null,null,null,null,null,null,null,null,null,null,null,null,null,null,null,null,null,null,null,null,"H.G. nr. 907/2016"]
[]
[null,"A3 Titlu proiect:"]
[]
[]
[]
[]
[null,"A4 Descrierea succintă a proiectului:"]
[]
[]
[]
[]
[]
[]
[]
[]
[]
[]
[]
[null,null,"A5 Amplasarea proiectului:"]
[]
["Regiunea de dezvoltare:",null,null,null,null,null,null,null,null,null,null,null,null,null,null,null,null,null,null,null,null,null,null,null,null,null,null,"Judeţ:"]
[]
[null,"Obiectivele investiţiei",null,null,null,null,null,null,null,null,null,null,null,null,null,"Judeţ",null,null,null,null,null,null,null,null,null,null,null,"Comună/Oraş",null,null,null,null,null,null,null,null,null,null,null,"Sat",null,null,null,null,null,null,null,null,null,null,"Sat"]
[]
[]
[]
[]
[]
[]
[]
[]
[]
[]
[]
[]
[]
[]
[]
[]
[]
[]
[]
[]
[]
[]
[]
[]
[]
[]
[]
[]
[]
[]
[]
[]
[]
[]
[]
[]
[]
[]
[]
[]
[null,"A6 Date despre tipul de proiect şi beneficiar:"]
[]
[null,"A6.1",null,null,null,null,"Investiţie nouă",null,null,null,null,null,null,null,null,null,null,null,null,null,null,null,null,null,null,null,null,null,"A6.2",null,null,null,null,"Localitati şi ADI"]
[null,null,null,null,null,null,"Lucrări de intervenție",null,null,null,null,null,null,null,null,null,null,null,null,null,null,null,null,null,null,null,null,null,null,null,null,null,null,"Alt tip de solicitant"]
[]
[null,"A6.1.2",null,null,null,null,"Proiect cu constructii montaj"]
[null,null,null,null,null,null,"Proiect fara constructii montaj"]
[]
[null,"A6.3",null,null,null,"Prescorare",null,null,null,null,null,null,null,null,null,null,null,null,"puncte",null,null,null,null,null,null,null,null,null,"A6.4",null,null,"Alocare financiară",null,null,null,null,null,null,null,null," Teritoriul GAL Ada Kaleh"]
[null,"A6.3.1 Detaliere criterii de selecţie îndeplinite:"]
[]
[]
[]
[]
[null,"A7 Date despre consultant:"]
[null,"Denumire: "]
[null,"Cod Unic de Înregistrare / Codul de"]
[null,"Înregistrare Fiscală",null,null,null,null,null,null,null,null,null,null,null,null,null,null,null,null,null,null,null,null,null,null,null,null,null,null,null,null,"Număr de înregistrare în registrul comerțului"]
[]
[null,"A8 Date despre proiectant:"]
[null,"Denumire: "]
[null,"Cod Unic de Înregistrare / Codul de"]
[null,"Înregistrare Fiscală",null,null,null,null,null,null,null,null,null,null,null,null,null,null,null,null,null,null,null,null,null,null,null,null,null,null,null,null,"Număr de înregistrare în registrul comerțului"]
[]
[]
["B INFORMAŢII PRIVIND SOLICITANTUL"]
["B1 Descrierea solicitantului"]
[null,"B1.1 Informaţii privind solicitantul"]
[null,"Data înființării",null,null,null,null,null,null,null,null,null,null,null,null,null,null,null,null,null,"Cod Unic de Înregistrare și/sau Codul de",null,null,null,null,null,null,null,null,null,null,null,null,null,null,null,null,null,null,null,null,null,null,null,"Statut juridic al solicitantului"]
[null,null,null,null,null,null,null,null,null,null,null,null,null,null,null,null,null,null,null,"Înregistrare Fiscală",null,null,null,null,null,null,null,null,null,null,null,null,null,null,null,null,null,null,null,null,null,null,null,"(UAT, ADI, ONG*)"]
[]
[]
[null,"Număr de înregistrare în registrul comerțului"]
[]
[null,"Codul unic de înregistrare APIA",null,null,null,null,null,null,null,null,null,null,null,null,null,null,null,null,null,null,null,null,null,null,null,null,null,null,null,null,null,null,null,null,null,null,"Anul atribuirii codului"]
[]
[null,"Nr. localitati ADI"]
[]
[null,"Denumire localite solicitant",null,null,null,null,null,null,null,null,null,null,null,null,null,null,null,null,null,null,null,null,null,null,null,null,null,null,"Cod Unic de Înregistrare / Cod de Înregistrare Fiscală"]
[]
[]
[null,"Denumire localitate solicitant",null,null,null,null,null,null,null,null,null,null,null,null,null,null,null,null,null,null,null,null,null,null,null,null,null,null,"Cod Unic de Înregistrare / Cod de Înregistrare Fiscală"]
[]
[]
[null,"Denumire localitate solicitant",null,null,null,null,null,null,null,null,null,null,null,null,null,null,null,null,null,null,null,null,null,null,null,null,null,null,"Cod Unic de Înregistrare / Cod de Înregistrare Fiscală"]
[]
[]
[null,"Denumire localitate solicitant",null,null,null,null,null,null,null,null,null,null,null,null,null,null,null,null,null,null,null,null,null,null,null,null,null,null,"Cod Unic de Înregistrare / Cod de Înregistrare Fiscală"]
[]
[]
[null,"Denumire localitate solicitant",null,null,null,null,null,null,null,null,null,null,null,null,null,null,null,null,null,null,null,null,null,null,null,null,null,null,"Cod Unic de Înregistrare / Cod de Înregistrare Fiscală"]
[]
[]
[null,"Denumire localitate solicitant",null,null,null,null,null,null,null,null,null,null,null,null,null,null,null,null,null,null,null,null,null,null,null,null,null,null,"Cod Unic de Înregistrare / Cod de Înregistrare Fiscală"]
[]
[]
[null,"Denumire localitate solicitant",null,null,null,null,null,null,null,null,null,null,null,null,null,null,null,null,null,null,null,null,null,null,null,null,null,null,"Cod Unic de Înregistrare / Cod de Înregistrare Fiscală"]
[]
[]
[null,"B1.2 Sediul social / Domiciliul stabil al solicitantului / Reşedinţa din România"]
[null,"Judeţ",null,null,null,null,null,null,null,null,null,null,null,null,null,null,null,null,null,null,null,null,"Localitate",null,null,null,null,null,null,null,null,null,null,null,null,null,null,null,null,null,null,null,"Sat"]
[]
[null,"Cod Poştal",null,null,null,null,null,null,null,null,null,null,null,null,null,"Strada",null,null,null,null,null,null,null,null,null,null,null,null,null,null,null,null,null,null,null,null,null,null,null,null,null,null,null,null,null,null,null,null,null,null,null,null,"Nr."]
[]
[null,"Bloc",null,null,null,null,null,null,null,null,null,null,null,null,null,null,null,"Scara"]
[]
[null,"Telefon fix/ mobil",null,null,null,null,null,null,null,null,null,null,null,null,null,null,null,null,null,null,"Fax",null,null,null,null,null,null,null,null,null,null,null,null,null,null,null,"E-mail"]
[]
[]
[null,"B1.3 Numele şi prenumele reprezentantului legal şi funcţia acestuia în cadrul organizaţiei, precum şi"]
[null,"specimenul de semnatură:"]
[]
[null,null,null,"Numele",null,null,null,null,null,null,null,null,null,null,"Prenumele",null,null,null,null,null,null,null,null,null,null,"Funcţia",null,null,null,null,null,null,null,null,null,null,"Reprezentant legal",null,null,null,null,null,null,null,null,null,null,"Specimen de"]
[null,null,null,null,null,null,null,null,null,null,null,null,null,null,null,null,null,null,null,null,null,null,null,null,null,null,null,null,null,null,null,null,null,null,null,null,null,null,null,null,null,null,null,null,null,null,null,"semnătură"]
[]
[null,null,null,null,null,null,null,null,null,null,null,null,null,null,null,null,null,null,null,null,null,null,null,null,null,null,null,null,null,null,null,null,null,null,null,null,"LEGAL"]
[]
[]
["B2 Informaţii referitoare la reprezentantul legal de proiect"]
[null,"B2.1 Date de identitate ale reprezentantului legal de proiect"]
[]
[null,null,null,"Data naşterii",null,null,null,null,null,null,null,null,null,null,null,null,null,null,null,null,null,null,null,null,"Cod numeric personal"]
[]
[]
[]
[]
[null,null,null,null,"Act de identitate",null,null,null,null,null,null,null,null,null,null,null,null,null,"Seria",null,null,"Nr.",null,null,null,null,null,null,"Eliberat la data de",null,null,null,null,null,null,null,null,"de:",null,null,null,null,null,null,null,null,null,null,null,null,null,"Valabil până la:"]
[null,null,null,null,"B.I.",null,null,"C.I.",null,null,"Paşaport"]
[]
[]
[]
[]
[]
[]
[]
[]
[]
[]
[]
[]
[]
[]
[]
[]
[null,"B2.2 Domiciliul stabil al reprezentantului legal de proiect"]
[null,"Judeţ",null,null,null,null,null,null,null,null,null,null,null,null,null,null,null,null,null,null,null,null,"Localitate",null,null,null,null,null,null,null,null,null,null,null,null,null,null,null,null,null,null,null,"Sat"]
[]
[null,"Cod Poştal",null,null,null,null,null,null,null,null,null,null,"Strada",null,null,null,null,null,null,null,null,null,null,null,null,null,null,null,null,null,"Nr.",null,null,null,null,null,"Bloc",null,null,null,null,null,null,null,null,null,null,null,"Scara",null,null,null,null,null,"Ap."]
[]
[null,"Telefon fix",null,null,null,null,null,null,null,null,null,null,null,null,null,null,null,null,null,null,"Telefon mobil",null,null,null,null,null,null,null,null,null,null,null,null,null,null,null,null,null,"Fax"]
[]
[null,"E-mail"]
[]
[]
["B3 Informaţii privind contul bancar pentru proiect schema de autor de stat"]
[]
[null,null,"B3.1 Denumirea Băncii",null,null,null,null,null,null,null,null,null,null,null,null,null,null,null,null,null,null,null,null,null,null,null,null,null,null,null,null,"Denumirea Sucursalei/Filialei"]
[]
[]
[null,null,"B3.2 Adresa Băncii/Sucursalei"]
[]
[]
[null,null,"B3.3 Cod IBAN",null,null,null,null,null,null,null,null,null,null,null,null,null,null,null,null,null,null,null,null,null,null,null,null,null,null,null,null,"B3.4 Titularul contului bancar"]
[]
[]
[]
[]
[]
[]
[]
[]
[]
["C FINANȚĂRI NERAMBURSABILE OBȚINUTE, SAU SOLICITATE ?"]
[null,null,"Dacă au fost obținute finanțări nerambursabile sau au fost solicitate și au fost obținute parțial, se vor detalia prin completarea"]
[null,null,"tabelului de mai jos."]
[]
[null,null,null,null,null,null,null,null,null,null,"DA",null,null,null,null,null,null,null,"NU"]
[]
[null,"DENUMIRE PROGRAM FINANȚARE",null,null,null,null,null,null,null,null,null,null,null,null,"DA",null,null,null,null,null,null,null,null,null,null,null,null,null,null,null,null,null,null,null,null,null,null,null,null,null,null,null,null,null,null,null,null,null,null,null,null,null,null,null,null,null,"NU"]
[null,null,null,null,null,null,null,null,null,null,null,null,null,null,"Număr proiecte",null,null,null,null,"Titlul Proiectui și numărul contractului de finanțare ",null,null,null,null,null,null,null,null,null,null,null,null,null,null,null,null,null,null,null,null,null,null,"Data finalizării\nll/zz/aaaa",null,null,null,null,null,null,"Valoarea\nsprijinului\n(EUR)"]
[null,"Program Naţional*"]
[null,"Program Naţional*"]
[null,"Program Naţional*"]
[null,"SAPARD"]
[null,"FEADR"]
[null,"Alte programe europene*"]
[null,"Alte programe europene*"]
[null,"Alte programe europene*"]
[null,"Alte programe internaționale*"]
[null,"Alte programe internaționale*"]
[null,"Alte programe internaționale*"]
[null,null,null,null,"* se completează de către solicitant cu denumirea programului"]
["REGULI DE COMPLETARE\n\nCâmpurile \"Numele şi prenumele persoanei care înregistrează. Semnătura\", se vor completa după data primirii în format letric a acesteia împreună cu documentele justificative.\nCompletati devizele aferente capitolelor de cheltuieli, defalcat pe cheltuieli eligibile si neeligibile prin completarea tabelelor incluse in acest document, respectiv :\n1. Tabelul \"Deviz financiar_cap3\" cuprinde cheltuielile aferente capitolului 3 - Cheltuieli pentru proiectare si asistenta tehnica, cheltuieli care trebuie sa se regaseasca atat in Bugetul Indicativ (Tabel \"Buget indicativ\" din cererea de finantare, partea specifica), cat si in Devizul General din Studiul de Fezabilitate/Documentatia de avizare a Lucrarilor pentru Interventii.\n2. Tabelul \"Devize obiect\" cuprinde formatul cadru al devizului pe obiect, iar solicitantul va completa atatea devize pe obiect cate obiecte definite de proiectant sunt incluse in proiect. Suma tuturor devizelor pe obiect trebuie sa se regaseasca atat in Bugetul Indicativ (tabelul \"Buget indicativ\" din cererea de finantare, partea specifica), cat si in Devizul General din Studiul de Fezabilitate/Documentatia de avizare a Lucrarilor pentru Interventii In cazul in care proiectul de investitii presupune mai multe devize pe obiect, solicitantul va crea in documentul curent cate o copie a tabelului \"Devize obiect\" pentru fiecare deviz pe obiect si va detalia cheltuielile eligibile si neeligibile pe fiecare in parte.\n3. Tabelul \"cap.2+cap.5\" cuprinde cheltuieli aferente capitolelor 2 si 5 si trebuie sa se regaseasca atat in Bugetul Indicativ (tabel \"Buget indicativ\" din cererea de finantare, partea specifica), cat si Devizul General din Studiul de Fezabilitate/Documentatia de avizare a Lucrarilor pentru Interventii.\n4. Câmpurile \"Prescorare\" şi \"Detaliere criterii de selecţie îndeplinite\" de la sectiunea A6 sunt obligatorii.\n5. ATENTIE! Daca s-a bifat in cadrul Cererii de finantare optiunea realizarii studiului de fezabilitate in conformitate cu HG 28/2000, se va completa doar Bugetul Indicativ si Devizele pe obiect aferente HG 28/2000. De asemenea, daca s-a bifat in cadrul Cererii de finantare optiunea realizarii studiului de fezabilitate in conformitate cu HG 907/2016, se va completa doar Bugetul Indicativ si Devizele pe obiect aferente HG 907/2016.  Documentele de pe coloana DEPUNERE - Obligatoriu daca proiectul o impune\", din sectiunea E – Lista documentelor anexate - trebuie bifate şi anexate daca proiectul o impune.\nTrebuie bifate si anexate toate documentele de pe coloana “DEPUNERE -Obligatoriu pentru toate proiectele” din sectiunea E – Lista documentelor anexate.A251"]
[]
[]
[]
[]
[]
[]
[]
[]
[]
[]
[]
[]
[]
[]
[]
[]
[]
[]
[]
[]
[]
[]
[]
[]
[]
[]
[]
[]
[]
[]
[]
[]
[]
[]
[]
[]
[]
[]
[]
[]
[]
[]
[]
[]
[]
[]
[]
[]
[]
[]
[]
[null,"Buget Indicativ - HG 907/2016"]
["MINISTERUL AGRICULTURII ŞI DEZVOLTĂRII RURALE"]
["AGENŢIA PENTRU FINANŢAREA INVESTIŢIILOR RURALE"]
[]
[]
[null,null,null,null,null,null,null,null,null,null,null,null,null,null,null,"Curs EURO",null,null,null,null,null,null,null,null,null,null,null,null,null,null,"Data întocmirii devizului general din SF/DALI"]
[]
["Măsura"]
["Denumirea capitolelor de cheltuieli",null,null,null,null,null,null,null,null,null,null,null,null,null,null,null,null,null,null,null,null,null,null,null,null,null,null,null,null,null,null,null,null,null,null,"Cheltuieli eligibile",null,null,null,null,null,null,null,null,"Cheltuieli neeligibile",null,null,null,null,null,null,null,"Total"]
[null,null,null,null,null,null,null,null,null,null,null,null,null,null,null,null,null,null,null,null,null,null,null,null,null,null,null,null,null,null,null,null,null,null,null,"EURO",null,null,null,null,null,null,null,null,"EURO",null,null,null,null,null,null,null,"EURO"]
[1,null,null,null,null,null,null,null,null,null,null,null,null,null,null,null,null,null,null,null,null,null,null,null,null,null,null,null,null,null,null,null,null,null,null,2,null,null,null,null,null,null,null,null,3,null,null,null,null,null,null,null,4]
["Capitolul 1 Cheltuieli pentru obtinerea şi amenajarea terenului - total, din care:",null,null,null,null,null,null,null,null,null,null,null,null,null,null,null,null,null,null,null,null,null,null,null,null,null,null,null,null,null,null,null,null,null,null,{"$f":"SUM(AJ316:AJ318)","v":0},null,null,null,null,null,null,null,null,{"$f":"SUM(AS315:AS318)","v":0},null,null,null,null,null,null,null,{"$f":"SUM(AJ314:AZ314)","v":0}]
["1.1 Obţinerea terenului",null,null,null,null,null,null,null,null,null,null,null,null,null,null,null,null,null,null,null,null,null,null,null,null,null,null,null,null,null,null,null,null,null,null,null,null,null,null,null,null,null,null,null,null,null,null,null,null,null,null,null,{"$f":"SUM(AJ315:AZ315)","v":0}]
["1.2 Amenajarea terenului",null,null,null,null,null,null,null,null,null,null,null,null,null,null,null,null,null,null,null,null,null,null,null,null,null,null,null,null,null,null,null,null,null,null,null,null,null,null,null,null,null,null,null,null,null,null,null,null,null,null,null,0]
["1.3 Amenajari pentru protecţia mediului şi aducerea terenului la starea iniţială",null,null,null,null,null,null,null,null,null,null,null,null,null,null,null,null,null,null,null,null,null,null,null,null,null,null,null,null,null,null,null,null,null,null,null,null,null,null,null,null,null,null,null,null,null,null,null,null,null,null,null,0]
["1.4 Cheltuieli pentru relocarea/protecţia utilităţilor",null,null,null,null,null,null,null,null,null,null,null,null,null,null,null,null,null,null,null,null,null,null,null,null,null,null,null,null,null,null,null,null,null,null,null,null,null,null,null,null,null,null,null,null,null,null,null,null,null,null,null,{"$f":"SUM(AJ318:AZ318)","v":0}]
["Capitolul 2 Cheltuieli pentru asigurarea utilităţilor necesare obiectivului de investiții",null,null,null,null,null,null,null,null,null,null,null,null,null,null,null,null,null,null,null,null,null,null,null,null,null,null,null,null,null,null,null,null,null,null,null,null,null,null,null,null,null,null,null,null,null,null,null,null,null,null,null,0]
["Capitolul 3 Cheltuieli pentru proiectare şi asistenţă tehnică - total, din care:",null,null,null,null,null,null,null,null,null,null,null,null,null,null,null,null,null,null,null,null,null,null,null,null,null,null,null,null,null,null,null,null,null,null,{"$f":"AJ321+AJ325+AJ326+AJ327+AJ328+AJ336+AJ339","v":0},null,null,null,null,null,null,null,null,{"$f":"AS321+AS325+AS326+AS335+AS327+AS328+AS336+AS339","v":0},null,null,null,null,null,null,null,0]
["3.1 Studii",null,null,null,null,null,null,null,null,null,null,null,null,null,null,null,null,null,null,null,null,null,null,null,null,null,null,null,null,null,null,null,null,null,null,{"$f":"SUM(AJ322:AJ324)","v":0},null,null,null,null,null,null,null,null,{"$f":"SUM(AS322:AS324)","v":0},null,null,null,null,null,null,null,{"$f":"SUM(AJ321:AZ321)","v":0}]
["      3.1.1 Studii de teren",null,null,null,null,null,null,null,null,null,null,null,null,null,null,null,null,null,null,null,null,null,null,null,null,null,null,null,null,null,null,null,null,null,null,null,null,null,null,null,null,null,null,null,null,null,null,null,null,null,null,null,{"$f":"SUM(AJ322:AZ322)","v":0}]
["      3.1.2 Raport privind impactul asupra mediului",null,null,null,null,null,null,null,null,null,null,null,null,null,null,null,null,null,null,null,null,null,null,null,null,null,null,null,null,null,null,null,null,null,null,null,null,null,null,null,null,null,null,null,null,null,null,null,null,null,null,null,{"$f":"SUM(AJ323:AZ323)","v":0}]
["      3.1.3 Alte studii specifice",null,null,null,null,null,null,null,null,null,null,null,null,null,null,null,null,null,null,null,null,null,null,null,null,null,null,null,null,null,null,null,null,null,null,null,null,null,null,null,null,null,null,null,null,null,null,null,null,null,null,null,{"$f":"SUM(AJ324:AZ324)","v":0}]
["3.2 Documentații-suport și cheltuieli pentru obţinerea de avize, acorduri şi autorizaţii",null,null,null,null,null,null,null,null,null,null,null,null,null,null,null,null,null,null,null,null,null,null,null,null,null,null,null,null,null,null,null,null,null,null,null,null,null,null,null,null,null,null,null,null,null,null,null,null,null,null,null,0]
["3.3 Expertizare tehnică",null,null,null,null,null,null,null,null,null,null,null,null,null,null,null,null,null,null,null,null,null,null,null,null,null,null,null,null,null,null,null,null,null,null,null,null,null,null,null,null,null,null,null,null,null,null,null,null,null,null,null,0]
["3.4 Certificarea performanței energetice și auditul energetic al clădirilor",null,null,null,null,null,null,null,null,null,null,null,null,null,null,null,null,null,null,null,null,null,null,null,null,null,null,null,null,null,null,null,null,null,null,null,null,null,null,null,null,null,null,null,null,null,null,null,null,null,null,null,0]
["3.5 Proiectare",null,null,null,null,null,null,null,null,null,null,null,null,null,null,null,null,null,null,null,null,null,null,null,null,null,null,null,null,null,null,null,null,null,null,{"$f":"SUM(AJ329:AJ334)","v":0},null,null,null,null,null,null,null,null,{"$f":"SUM(AS329:AS334)","v":0},null,null,null,null,null,null,null,0]
["      3.5.1 Temă de proiectare",null,null,null,null,null,null,null,null,null,null,null,null,null,null,null,null,null,null,null,null,null,null,null,null,null,null,null,null,null,null,null,null,null,null,null,null,null,null,null,null,null,null,null,null,null,null,null,null,null,null,null,0]
["      3.5.2 Studiu de prefezabilitate",null,null,null,null,null,null,null,null,null,null,null,null,null,null,null,null,null,null,null,null,null,null,null,null,null,null,null,null,null,null,null,null,null,null,null,null,null,null,null,null,null,null,null,null,null,null,null,null,null,null,null,0]
["      3.5.3 Studiu de fezabilitate/documentație de avizare a lucrărilor de intervenții și deviz general",null,null,null,null,null,null,null,null,null,null,null,null,null,null,null,null,null,null,null,null,null,null,null,null,null,null,null,null,null,null,null,null,null,null,null,null,null,null,null,null,null,null,null,null,null,null,null,null,null,null,null,0]
["      3.5.4 Documentațiile tehnice necesare în vederea obținerii avizelor/acordurilor/autorizațiilor",null,null,null,null,null,null,null,null,null,null,null,null,null,null,null,null,null,null,null,null,null,null,null,null,null,null,null,null,null,null,null,null,null,null,null,null,null,null,null,null,null,null,null,null,null,null,null,null,null,null,null,{"$f":"SUM(AJ332:AZ332)","v":0}]
["      3.5.5 Verificarea tehnică de calitate a proiectului tehnic și a detaliilor de execuție",null,null,null,null,null,null,null,null,null,null,null,null,null,null,null,null,null,null,null,null,null,null,null,null,null,null,null,null,null,null,null,null,null,null,null,null,null,null,null,null,null,null,null,null,null,null,null,null,null,null,null,{"$f":"SUM(AJ333:AZ333)","v":0}]
["      3.5.6 Proiect tehnic și detalii de execuție",null,null,null,null,null,null,null,null,null,null,null,null,null,null,null,null,null,null,null,null,null,null,null,null,null,null,null,null,null,null,null,null,null,null,null,null,null,null,null,null,null,null,null,null,null,null,null,null,null,null,null,{"$f":"SUM(AJ334:AZ334)","v":0}]
["3.6 Organizarea procedurilor de achiziţie",null,null,null,null,null,null,null,null,null,null,null,null,null,null,null,null,null,null,null,null,null,null,null,null,null,null,null,null,null,null,null,null,null,null,null,null,null,null,null,null,null,null,null,null,null,null,null,null,null,null,null,{"$f":"SUM(AJ335:AZ335)","v":0}]
["3.7 Consultanță",null,null,null,null,null,null,null,null,null,null,null,null,null,null,null,null,null,null,null,null,null,null,null,null,null,null,null,null,null,null,null,null,null,null,{"$f":"AJ337","v":0},null,null,null,null,null,null,null,null,{"$f":"SUM(AS337:AS338)","v":0},null,null,null,null,null,null,null,{"$f":"SUM(AJ336:AZ336)","v":0}]
["      3.7.1 Managementul de proiect pentru obiectivul de investiții",null,null,null,null,null,null,null,null,null,null,null,null,null,null,null,null,null,null,null,null,null,null,null,null,null,null,null,null,null,null,null,null,null,null,null,null,null,null,null,null,null,null,null,null,null,null,null,null,null,null,null,{"$f":"SUM(AJ337:AZ337)","v":0}]
["      3.7.2 Auditul financiar",null,null,null,null,null,null,null,null,null,null,null,null,null,null,null,null,null,null,null,null,null,null,null,null,null,null,null,null,null,null,null,null,null,null,null,null,null,null,null,null,null,null,null,null,null,null,null,null,null,null,null,0]
["3.8 Asistența tehnică",null,null,null,null,null,null,null,null,null,null,null,null,null,null,null,null,null,null,null,null,null,null,null,null,null,null,null,null,null,null,null,null,null,null,{"$f":"AJ340+AJ343","v":0},null,null,null,null,null,null,null,null,{"$f":"AS340+AS343","v":0},null,null,null,null,null,null,null,0]
["      3.8.1 Asistență tehnică din partea proiectantului",null,null,null,null,null,null,null,null,null,null,null,null,null,null,null,null,null,null,null,null,null,null,null,null,null,null,null,null,null,null,null,null,null,null,{"$f":"SUM(AJ341:AJ342)","v":0},null,null,null,null,null,null,null,null,{"$f":"SUM(AS341:AS342)","v":0},null,null,null,null,null,null,null,{"$f":"SUM(AJ340:AZ340)","v":0}]
["            3.8.1.1 pe perioada de execuție a lucrărilor",null,null,null,null,null,null,null,null,null,null,null,null,null,null,null,null,null,null,null,null,null,null,null,null,null,null,null,null,null,null,null,null,null,null,null,null,null,null,null,null,null,null,null,null,null,null,null,null,null,null,null,{"$f":"SUM(AJ341:AZ341)","v":0}]
["            3.8.1.2 pentru participarea proiectantului la fazele incluse în programul de control al lucrărilor de execuție, avizat de către Inspectoratul de Stat în Construcții",null,null,null,null,null,null,null,null,null,null,null,null,null,null,null,null,null,null,null,null,null,null,null,null,null,null,null,null,null,null,null,null,null,null,null,null,null,null,null,null,null,null,null,null,null,null,null,null,null,null,null,{"$f":"SUM(AJ342:AZ342)","v":0}]
["      3.8.2 Dirigenție de șantier",null,null,null,null,null,null,null,null,null,null,null,null,null,null,null,null,null,null,null,null,null,null,null,null,null,null,null,null,null,null,null,null,null,null,null,null,null,null,null,null,null,null,null,null,null,null,null,null,null,null,null,0]
["Verificare încadrare cheltuieli capitolul 3",null,null,null,null,null,null,null,null,null,null,null,null,null,null,null,null,null,null,null,null,null,null,null,null,null,null,null,null,null,null,null,{"$f":"AJ314+AJ319+AJ345","v":0},{"$f":"IF(AG344=0,0,AI344)","v":0},{"$f":"AJ320*100/AG344","v":{"$error":"#DIV/0!"}},{"$f":"IF(AJ345=0,IF(AH344<=5,\"cheltuieli capitol 3 se incadreaza in limita de 5%\",\"cheltuieli capitol 3 nu se incadreaza in limita de 5%\"),IF(AH344<=10,\"cheltuieli capitol 3 se incadreaza in limita de 10%\",\"cheltuieli capitol 3 nu se incadreaza in limita de 10%\"))","v":"cheltuieli capitol 3 se incadreaza in limita de 5%"}]
["Capitolul 4 Cheltuieli pentru investiţia de bază - total, din care:",null,null,null,null,null,null,null,null,null,null,null,null,null,null,null,null,null,null,null,null,null,null,null,null,null,null,null,null,null,null,null,null,null,null,{"$f":"SUM(AJ346:AJ351)","v":0},null,null,null,null,null,null,null,null,{"$f":"SUM(AS346:AS351)","v":0},null,null,null,null,null,null,null,{"$f":"SUM(AJ345:AZ345)","v":0}]
["4.1 Construcţii şi instalaţii",null,null,null,null,null,null,null,null,null,null,null,null,null,null,null,null,null,null,null,null,null,null,null,null,null,null,null,null,null,null,null,null,null,null,null,null,null,null,null,null,null,null,null,null,null,null,null,null,null,null,null,{"$f":"SUM(AJ346:AZ346)","v":0}]
["4.2 Montaj utilaje, echipamente tehnologice şi funcţionale",null,null,null,null,null,null,null,null,null,null,null,null,null,null,null,null,null,null,null,null,null,null,null,null,null,null,null,null,null,null,null,null,null,null,null,null,null,null,null,null,null,null,null,null,null,null,null,null,null,null,null,0]
["4.3 Utilaje, echipamente tehnologice şi funcţionale care necesită montaj",null,null,null,null,null,null,null,null,null,null,null,null,null,null,null,null,null,null,null,null,null,null,null,null,null,null,null,null,null,null,null,null,null,null,null,null,null,null,null,null,null,null,null,null,null,null,null,null,null,null,null,0]
["4.4 Utilaje, echipamente tehnologice şi funcţionale care nu necesită montaj şi echipamente de transport",null,null,null,null,null,null,null,null,null,null,null,null,null,null,null,null,null,null,null,null,null,null,null,null,null,null,null,null,null,null,null,null,null,null,null,null,null,null,null,null,null,null,null,null,null,null,null,null,null,null,null,0]
["4.5 Dotări",null,null,null,null,null,null,null,null,null,null,null,null,null,null,null,null,null,null,null,null,null,null,null,null,null,null,null,null,null,null,null,null,null,null,null,null,null,null,null,null,null,null,null,null,null,null,null,null,null,null,null,0]
["4.6 Active necorporale",null,null,null,null,null,null,null,null,null,null,null,null,null,null,null,null,null,null,null,null,null,null,null,null,null,null,null,null,null,null,null,null,null,null,null,null,null,null,null,null,null,null,null,null,null,null,null,null,null,null,null,0]
["Capitolul 5 Alte cheltuieli - total, din care:",null,null,null,null,null,null,null,null,null,null,null,null,null,null,null,null,null,null,null,null,null,null,null,null,null,null,null,null,null,null,null,null,null,null,{"$f":"AJ353+AJ356+AJ363","v":0},null,null,null,null,null,null,null,null,{"$f":"AS353+AS356+AS362+AS363","v":0},null,null,null,null,null,null,null,0]
["5.1 Organizare de şantier",null,null,null,null,null,null,null,null,null,null,null,null,null,null,null,null,null,null,null,null,null,null,null,null,null,null,null,null,null,null,null,null,null,null,{"$f":"SUM(AJ354:AR355)","v":0},null,null,null,null,null,null,null,null,{"$f":"SUM(AS354:AZ355)","v":0},null,null,null,null,null,null,null,0]
["      5.1.1 Lucrări de construcţii şi instalaţii aferente organizării de şantier",null,null,null,null,null,null,null,null,null,null,null,null,null,null,null,null,null,null,null,null,null,null,null,null,null,null,null,null,null,null,null,null,null,null,null,null,null,null,null,null,null,null,null,null,null,null,null,null,null,null,null,0]
["      5.1.2 Cheltuieli conexe orgănizării şantierului",null,null,null,null,null,null,null,null,null,null,null,null,null,null,null,null,null,null,null,null,null,null,null,null,null,null,null,null,null,null,null,null,null,null,null,null,null,null,null,null,null,null,null,null,null,null,null,null,null,null,null,0]
["5.2 Comisioane, cote, taxe, costul creditului",null,null,null,null,null,null,null,null,null,null,null,null,null,null,null,null,null,null,null,null,null,null,null,null,null,null,null,null,null,null,null,null,null,null,{"$f":"SUM(AJ358:AR361)-AJ360","v":0},null,null,null,null,null,null,null,null,{"$f":"SUM(AS357:AZ361)","v":0},null,null,null,null,null,null,null,{"$f":"SUM(AJ356:AZ356)","v":0}]
["      5.2.1 Comisioanele și dobânzile aferente creditului băncii finanțatoare",null,null,null,null,null,null,null,null,null,null,null,null,null,null,null,null,null,null,null,null,null,null,null,null,null,null,null,null,null,null,null,null,null,null,null,null,null,null,null,null,null,null,null,null,null,null,null,null,null,null,null,0]
["      5.2.2 Cota aferentă ISC pentru controlul calității lucrărilor de construcții",null,null,null,null,null,null,null,null,null,null,null,null,null,null,null,null,null,null,null,null,null,null,null,null,null,null,null,null,null,null,null,null,null,null,null,null,null,null,null,null,null,null,null,null,null,null,null,null,null,null,null,0]
["      5.2.3 Cota aferentă ISC pentru controlul statului în amenajarea teritoriului, urbanism și pentru autorizarea lucrărilor de construcţii",null,null,null,null,null,null,null,null,null,null,null,null,null,null,null,null,null,null,null,null,null,null,null,null,null,null,null,null,null,null,null,null,null,null,null,null,null,null,null,null,null,null,null,null,null,null,null,null,null,null,null,0]
["      5.2.4 Cota aferentă Casei Sociale a Constructorilor - CSC",null,null,null,null,null,null,null,null,null,null,null,null,null,null,null,null,null,null,null,null,null,null,null,null,null,null,null,null,null,null,null,null,null,null,null,null,null,null,null,null,null,null,null,null,null,null,null,null,null,null,null,0]
["      5.2.5 Taxe pentru acorduri, avize conforme și autorizașia de construire/desființare",null,null,null,null,null,null,null,null,null,null,null,null,null,null,null,null,null,null,null,null,null,null,null,null,null,null,null,null,null,null,null,null,null,null,null,null,null,null,null,null,null,null,null,null,null,null,null,null,null,null,null,0]
["5.3 Cheltuieli diverse şi neprevăzute",null,null,null,null,null,null,null,null,null,null,null,null,null,null,null,null,null,null,null,null,null,null,null,null,null,null,null,null,null,null,null,null,null,null,null,null,null,null,null,null,null,null,null,null,null,null,null,null,null,null,null,0]
["5.4 Cheltuieli pentru informare și publicitate",null,null,null,null,null,null,null,null,null,null,null,null,null,null,null,null,null,null,null,null,null,null,null,null,null,null,null,null,null,null,null,null,null,null,null,null,null,null,null,null,null,null,null,null,null,null,null,null,null,null,null,0]
["Capitolul 6 Cheltuieli pentru darea în exploatare - total, din care:",null,null,null,null,null,null,null,null,null,null,null,null,null,null,null,null,null,null,null,null,null,null,null,null,null,null,null,null,null,null,null,null,null,null,{"$f":"AJ366","v":0},null,null,null,null,null,null,null,null,{"$f":"SUM(AS365:AS366)","v":0},null,null,null,null,null,null,null,0]
["6.1 Pregătirea personalului de exploatare",null,null,null,null,null,null,null,null,null,null,null,null,null,null,null,null,null,null,null,null,null,null,null,null,null,null,null,null,null,null,null,null,null,null,null,null,null,null,null,null,null,null,null,null,null,null,null,null,null,null,null,0]
["6.2 Probe tehnologice şi teste",null,null,null,null,null,null,null,null,null,null,null,null,null,null,null,null,null,null,null,null,null,null,null,null,null,null,null,null,null,null,null,null,null,null,null,null,null,null,null,null,null,null,null,null,null,null,null,null,null,null,null,0]
["TOTAL GENERAL",null,null,null,null,null,null,null,null,null,null,null,null,null,null,null,null,null,null,null,null,null,null,null,null,null,null,null,null,null,null,null,null,null,null,{"$f":"AJ314+AJ319+AJ320+AJ345+AJ352+AJ364","v":0},null,null,null,null,null,null,null,null,{"$f":"AS314+AS319+AS320+AS345+AS352+AS364","v":0},null,null,null,null,null,null,null,0]
["Verificare actualizare",null,null,null,null,null,null,null,null,null,null,null,null,null,null,null,null,null,null,null,null,null,null,null,null,null,null,null,null,null,null,{"$f":"AJ369*100/AJ367","v":{"$error":"#DIV/0!"}},null,null,{"$f":"IF(AJ367=0,0,AF368)","v":0},{"$f":"IF(AI368<=5,\"actualizare mai mică de 5% din valoarea eligibila\",\"actualizare mai mare de 5% din valoarea eligibila\")","v":"actualizare mai mică de 5% din valoarea eligibila"}]
["ACTUALIZARE Cheltuieli Eligibile (max 5%)",null,null,null,null,null,null,null,null,null,null,null,null,null,null,null,null,null,null,null,null,null,null,null,null,null,null,null,null,null,null,null,null,null,null,null,null,null,null,null,null,null,null,null,null,null,null,null,null,null,null,null,{"$f":"SUM(AJ369:AZ369)","v":0}]
["TOTAL GENERAL CU ACTUALIZARE",null,null,null,null,null,null,null,null,null,null,null,null,null,null,null,null,null,null,null,null,null,null,null,null,null,null,null,null,null,null,null,null,null,null,{"$f":"AJ367+AJ369","v":0},null,null,null,null,null,null,null,null,{"$f":"AS367","v":0},null,null,null,null,null,null,null,{"$f":"SUM(AJ370:AZ370)","v":0}]
["Valoare TVA",null,null,null,null,null,null,null,null,null,null,null,null,null,null,null,null,null,null,null,null,null,null,null,null,null,null,null,null,null,null,null,null,null,null,null,null,null,null,null,null,null,null,null,null,null,null,null,null,null,null,null,{"$f":"SUM(AJ371:AZ371)","v":0}]
[]
["TOTAL GENERAL inclusiv TVA",null,null,null,null,null,null,null,null,null,null,null,null,null,null,null,null,null,null,null,null,null,null,null,null,null,null,null,null,null,null,null,null,null,null,{"$f":"BA370+BA371","v":0}]
[null,null,null,null,null,null,null,null,null,null,null,null,null,null,null,null,null,null,null,null,null,null,null,null,null,null,null,null,null,null,null,null,null,null,null,"LEI",null,null,null,null,null,null,null,null,"EURO"]
["VALOARE TOTALĂ",null,null,null,null,null,null,null,null,null,null,null,null,null,null,null,null,null,null,null,null,null,null,null,null,null,null,null,null,null,null,null,null,null,null,{"$f":"AS375*W308","v":0},null,null,null,null,null,null,null,null,{"$f":"AJ373","v":0}]
["VALOARE ELIGIBILĂ",null,null,null,null,null,null,null,null,null,null,null,null,null,null,null,null,null,null,null,null,null,null,null,null,null,null,null,null,null,null,null,null,null,null,{"$f":"AS376*W308","v":0},null,null,null,null,null,null,null,null,{"$f":"AJ370+AJ371","v":0}]
["VALOARE NEELIGIBILĂ",null,null,null,null,null,null,null,null,null,null,null,null,null,null,null,null,null,null,null,null,null,null,null,null,null,null,null,null,null,null,null,null,null,null,{"$f":"AS377*W308","v":0},null,null,null,null,null,null,null,null,{"$f":"AS370+AS371","v":0}]
[]
["Plan Financiar",null,null,null,null,null,null,null,null,null,null,null,null,null,null,null,null,null,null,null,null,null,null,null,null,null,null,null,null,null,null,null,null,null,null,"Cheltuieli eligibile EURO",null,null,null,null,null,null,null,null,"Cheltuieli neeligibile EURO",null,null,null,null,null,null,null,"Total"]
["Ajutor public nerambursabil (contribuţie UE şi cofinanţare naţională)",null,null,null,null,null,null,null,null,null,null,null,null,null,null,null,null,null,null,null,null,null,null,null,null,null,null,null,null,null,null,null,null,null,null,null,null,null,null,null,null,null,null,null,null,null,null,null,null,null,null,null,{"$f":"SUM(AJ380:AZ380)","v":0}]
["Cofinantare privata, din care:",null,null,null,null,null,null,null,null,null,null,null,null,null,null,null,null,null,null,null,null,null,null,null,null,null,null,null,null,null,null,null,null,null,null,{"$f":"SUM(AJ382:AJ383)","v":0},null,null,null,null,null,null,null,null,{"$f":"SUM(AS382:AS383)","v":0},null,null,null,null,null,null,null,0]
[null,null,null,null,null,null,null,null,null,null,null,null,null,null,null,"- autofinantare",null,null,null,null,null,null,null,null,null,null,null,null,null,null,null,null,null,null,null,null,null,null,null,null,null,null,null,null,null,null,null,null,null,null,null,null,0]
[null,null,null,null,null,null,null,null,null,null,null,null,null,null,null,"- imprumuturi",null,null,null,null,null,null,null,null,null,null,null,null,null,null,null,null,null,null,null,null,null,null,null,null,null,null,null,null,null,null,null,null,null,null,null,null,0]
["Buget local",null,null,null,null,null,null,null,null,null,null,null,null,null,null,null,null,null,null,null,null,null,null,null,null,null,null,null,null,null,null,null,null,null,null,null,null,null,null,null,null,null,null,null,null,null,null,null,null,null,null,null,0]
["TOTAL PROIECT",null,null,null,null,null,null,null,null,null,null,null,null,null,null,null,null,null,null,null,null,null,null,null,null,null,null,null,null,null,null,null,null,null,null,{"$f":"AJ380+AJ381+AJ384","v":0},null,null,null,null,null,null,null,null,{"$f":"AS381+AS384","v":0},null,null,null,null,null,null,null,0]
["Procent contribuţie publică",null,null,null,null,null,null,null,null,null,null,null,null,null,null,null,null,null,null,null,null,null,null,null,null,null,null,null,null,null,null,null,null,{"$f":"AJ380*100/AJ385","v":{"$error":"#DIV/0!"}},{"$f":"IF(AJ385=0,0,AH386)","v":0},{"$f":"AI386","v":0},null,null,null,null,null,null,null,"%"]
["Avans solicitat"]
["Procent avans solicitat ca procent din ajutorul public nerambursabil",null,null,null,null,null,null,null,null,null,null,null,null,null,null,null,null,null,null,null,null,null,null,null,null,null,null,null,null,null,null,null,null,null,{"$f":"AJ387*100/AJ380","v":{"$error":"#DIV/0!"}},{"$f":"IF(AJ380=0,0,AI388)","v":0},null,null,null,null,null,null,null,null,{"$f":"IF(AJ388<=50,\"Suma avans mai mica de 50% din ajutorul public\",\"Suma avans mai mare de 50% din ajutorul public\")","v":"Suma avans mai mica de 50% din ajutorul public"}]
[]
[]
[null,null,null,null,null,null,null,"MINISTERUL AGRICULTURII ŞI DEZVOLTĂRII RURALE"]
[null,null,null,null,null,null,null,null,null,null,null,null,null,null,null,null,null,null,null,null,null,null,null,null,null,null,null,null,null,null,null,null,null,null,null,null,null,null,null,null,null,null,"Anexa A1\nHG 907/2016"]
[null,null,null,null,null,null,null,"AGENŢIA PENTRU FINANŢAREA INVESTIŢIILOR RURALE"]
[]
[null,null,null,null,null,null,null,"Deviz financiar- Capitolul 3 - Cheltuieli pentru proiectare şi asistenţa tehnică - EURO"]
[]
[]
["(Titlu deviz)"]
["Nr.crt",null,null,null,"Specificaţie",null,null,null,null,null,null,null,null,null,null,null,null,null,null,null,null,null,null,null,null,null,null,null,null,null,null,null,null,null,null,null,null,null,null,null,null,null,"Valoare eligibilă",null,null,null,null,null,null,null,null,"Valoare\nneeligibilă"]
["3.1",null,null,null,"Cheltuieli pentru studii - total din care:",null,null,null,null,null,null,null,null,null,null,null,null,null,null,null,null,null,null,null,null,null,null,null,null,null,null,null,null,null,null,null,null,null,null,null,null,null,{"$f":"AQ401+AQ402+AQ403","v":0},null,null,null,null,null,null,null,null,{"$f":"AZ401+AZ402+AZ403","v":0}]
[null,null,null,null,"3.1.1 Studii de teren: studii geotehnice, geologice, hidrologice, hidrogeotehnice,\nfotogrammetrice, topografica şi de stabilitate ale terenului pe care se amplasează obiectivul de investiţie "]
[null,null,null,null,"3.1.2 Raport privind impactul asupra mediului"]
[null,null,null,null,"3.1.3 Studii de specialitate necesare în funcţie de specificul investiţiei"]
["3.2",null,null,null,"Documentaţii-suport şi cheltuieli pentru obţinerea de avize, acorduri şi\nautorizaţii",null,null,null,null,null,null,null,null,null,null,null,null,null,null,null,null,null,null,null,null,null,null,null,null,null,null,null,null,null,null,null,null,null,null,null,null,null,{"$f":"AQ405+AQ406+AQ407+AQ410+AQ411+AQ412+AQ413","v":0},null,null,null,null,null,null,null,null,{"$f":"AZ405+AZ406+AZ407+AZ408+AZ409+AZ410+AZ411+AZ412+AZ413","v":0}]
[null,null,null,null,"1. obţinerea/prelungirea valabilităţii ceritificatului de urbanism"]
[null,null,null,null,"2. obţinerea/prelungirea valabilităţii autorizaţiei de construire/desfiinţare"]
[null,null,null,null,"3. obţinerea avizelor şi acordurilor pentru racorduri şi branşamente la reţele publice\nde alimentare cu apă, canalizare, alimentare cu gaze, alimentare cu agent termic,\nenergie electrică, telefonie"]
[null,null,null,null,"4. obţinerea certificatului de nomenclatură stradală şi adresă"]
[null,null,null,null,"5. întocmirea documentaţiei, obţinerea numărului cadastral provizoriu şi\nînregistrarea terenului în cartea funciară"]
[null,null,null,null,"6. obţinerea actului administrativ al autorităţii competente pentru protecţia mediului"]
[null,null,null,null,"7. obţinerea avizului de protecţie civilă"]
[null,null,null,null,"8. avizul de specialitate în cazul obiectivelor de patrimoniu"]
[null,null,null,null,"9. alte avize, acorduri şi autorizaţii"]
["3.3",null,null,null,"Cheltuieli pentru expertizarea tehnică a construcţiilor existente, a structurilor\nşi/sau, după caz, a proiectelor tehnice, inclusiv întocmirea de către expertul\ntehnic a raportului de expertiză tehnică",null,null,null,null,null,null,null,null,null,null,null,null,null,null,null,null,null,null,null,null,null,null,null,null,null,null,null,null,null,null,null,null,null,null,null,null,null,0,null,null,null,null,null,null,null,null,0]
["3.4",null,null,null,"Cheltuieli pentru certificarea performanţei energetice şi auditul energetic al clădirilor",null,null,null,null,null,null,null,null,null,null,null,null,null,null,null,null,null,null,null,null,null,null,null,null,null,null,null,null,null,null,null,null,null,null,null,null,null,0,null,null,null,null,null,null,null,null,0]
["3.5",null,null,null,"Cheltuieli pentru proiectare",null,null,null,null,null,null,null,null,null,null,null,null,null,null,null,null,null,null,null,null,null,null,null,null,null,null,null,null,null,null,null,null,null,null,null,null,null,{"$f":"AQ417+AQ418+AQ419+AQ420+AQ421+AQ422","v":0},null,null,null,null,null,null,null,null,{"$f":"AZ417+AZ418+AZ419+AZ420+AZ421+AZ422","v":0}]
[null,null,null,null,"3.5.1 Temă de proiectare"]
[null,null,null,null,"3.5.2 Studiu de prefezabilitate"]
[null,null,null,null,"3.5.3 Studiu de fezabilitate/documentaţie de avizare a lucrărilor de intervenţii şi deviz general"]
[null,null,null,null,"3.5.4 Documentaţiile tehnice necesare în vederea obţinerii avizelor/acordurilor/autorizaţiilor"]
[null,null,null,null,"3.5.5 Verificarea tehnică de calitate a proiectului tehnic şi a detaliilor de execuţie"]
[null,null,null,null,"3.5.6 Proiect tehnic şi detalii de execuţie"]
["3.6",null,null,null,"Cheltuieli aferente organizării şi derulării procedurilor de achiziţii publice",null,null,null,null,null,null,null,null,null,null,null,null,null,null,null,null,null,null,null,null,null,null,null,null,null,null,null,null,null,null,null,null,null,null,null,null,null,null,null,null,null,null,null,null,null,null,{"$f":"AZ424+AZ425+AZ426+AZ427","v":0}]
[null,null,null,null,"1. Cheltuieli aferente întocmirii documentaţiei de atribuire şi multiplicării acesteia (exclusiv cele cumpărate de ofertanţi)"]
[null,null,null,null,"2. Cheltuieli cu onorariile, transportul, cazarea şi diurna membrilor desemnaţi în comisiile de evaluare"]
[null,null,null,null,"3. Anunţuri de intenţie, de participare şi de atribuire a contractelor, corespondenţă\nprin poştă, fax, poştă electronică în legătură cu procedurile de achiziţie publică"]
[null,null,null,null,"4. Cheltuieli aferente organizării şi derulării procedurilor de achiziţii publice"]
["3.7",null,null,null,"Cheltuieli pentru consultanţă",null,null,null,null,null,null,null,null,null,null,null,null,null,null,null,null,null,null,null,null,null,null,null,null,null,null,null,null,null,null,null,null,null,null,null,null,null,{"$f":"AQ429","v":0},null,null,null,null,null,null,null,null,{"$f":"AZ429+AZ430","v":0}]
[null,null,null,null,"3.7.1 Managementul de proiect pentru obiectivul de investiţii"]
[null,null,null,null,"3.7.2 Auditul financiar"]
["3.8",null,null,null,"Cheltuieli pentru asistenţă tehnică",null,null,null,null,null,null,null,null,null,null,null,null,null,null,null,null,null,null,null,null,null,null,null,null,null,null,null,null,null,null,null,null,null,null,null,null,null,{"$f":"AQ432+AQ435","v":0},null,null,null,null,null,null,null,null,{"$f":"AZ432+AZ435","v":0}]
[null,null,null,null,"3.8.1. Asistenţă tehnică din partea proiectantului",null,null,null,null,null,null,null,null,null,null,null,null,null,null,null,null,null,null,null,null,null,null,null,null,null,null,null,null,null,null,null,null,null,null,null,null,null,{"$f":"AQ433+AQ434","v":0},null,null,null,null,null,null,null,null,{"$f":"AZ433+AZ434","v":0}]
[null,null,null,null,"    1.1. pe perioada de execuţie a lucrărilor"]
[null,null,null,null,"     1.2. pentru participarea proiectantului la fazele incluse în programul de control al\nlucrărilor de execuţie, avizat de către Inspectoratul de Stat în Construcţii"]
[null,null,null,null,"3.8.2 Dirigenţie de şantier, asigurată de personal tehnic de specialitate, autorizat"]
[null,null,null,null,"Total valoare fără TVA",null,null,null,null,null,null,null,null,null,null,null,null,null,null,null,null,null,null,null,null,null,null,null,null,null,null,null,null,null,null,null,null,null,null,null,null,null,{"$f":"AQ431+AQ428+AQ416+AQ415+AQ414+AQ404+AQ400","v":0},null,null,null,null,null,null,null,null,{"$f":"AZ431+AZ428+AZ423+AZ416+AZ415+AZ414+AZ404+AZ400","v":0}]
[null,null,null,null,"Valoare TVA (aferentă cheltuielilor eligibile şi neeligibile)"]
["TOTAL DEVIZ FINANCIAR 1 (inclusiv TVA)",null,null,null,null,null,null,null,null,null,null,null,null,null,null,null,null,null,null,null,null,null,null,null,null,null,null,null,null,null,null,null,null,null,null,null,null,null,null,null,null,null,{"$f":"AQ436+AZ436+AQ437+AZ437","v":0}]
[]
["Notă: Pentru a adăuga o nouă anexă accesaţi foaia (sheet) corespunzătoare sau click aici"]
[]
[null,null,null,null,null,null,null,"MINISTERUL AGRICULTURII ŞI DEZVOLTĂRII RURALE"]
[null,null,null,null,null,null,null,null,null,null,null,null,null,null,null,null,null,null,null,null,null,null,null,null,null,null,null,null,null,null,null,null,null,null,null,null,null,null,null,null,null,null,"Anexa A2\nHG 907/2016"]
[null,null,null,null,null,null,null,"AGENŢIA PENTRU FINANŢAREA INVESTIŢIILOR RURALE"]
[]
[null,null,null,null,null,null,null,"DEVIZ PE OBIECT *"]
[]
[]
["(Descriere obiect de construcţie)"]
["Nr. crt.",null,null,null,"Denumire",null,null,null,null,null,null,null,null,null,null,null,null,null,null,null,null,null,null,null,null,null,null,null,null,null,null,null,null,null,null,null,null,null,null,null,null,null,"Valoarea pe categorii de lucrări, fară TVA - EURO"]
["Cap. 4 + Cheltuieli pentru investiţia de bază",null,null,null,null,null,null,null,null,null,null,null,null,null,null,null,null,null,null,null,null,null,null,null,null,null,null,null,null,null,null,null,null,null,null,null,null,null,null,null,null,null,"Valoare eligibilă",null,null,null,null,null,null,null,null,"Valoare\nneeligibilă"]
["   I - LUCRĂRI DE CONSTRUCŢII ŞI INSTALAŢII"]
["4.1",null,null,null,"Construcţii şi instalaţii"]
[null,null,null,null,"4.1.1 Terasamente, sistematizare pe verticală şi amenajări exterioare"]
[null,null,null,null,"4.1.2 Rezistenţă"]
[null,null,null,null,"4.1.3 Arhitectură"]
[null,null,null,null,"4.1.4 Instalaţii"]
[null,null,null,null,"TOTAL I ( fără TVA)",null,null,null,null,null,null,null,null,null,null,null,null,null,null,null,null,null,null,null,null,null,null,null,null,null,null,null,null,null,null,null,null,null,null,null,null,null,{"$f":"SUM(AQ454:AQ457)","v":0},null,null,null,null,null,null,null,null,{"$f":"SUM(AZ454:BI457)","v":0}]
["   II - MONTAJ"]
["4.2",null,null,null,"Montaj utilaje şi echipamente tehnologice"]
[null,null,null,null,"TOTAL II ( fără TVA)",null,null,null,null,null,null,null,null,null,null,null,null,null,null,null,null,null,null,null,null,null,null,null,null,null,null,null,null,null,null,null,null,null,null,null,null,null,{"$f":"SUM(AQ460)","v":0},null,null,null,null,null,null,null,null,{"$f":"SUM(AZ460)","v":0}]
["   III - PROCURARE"]
["4.3",null,null,null,"Utilaje, echipamente tehnologice şi funcţionale care necesită montaj"]
["4.4",null,null,null,"Utilaje, echipamente tehnologice şi funcţionale care nu necesită\nmontaj şi echipamente de transport"]
["4.5",null,null,null,"Dotări"]
["4.6",null,null,null,"Active necorporale"]
[null,null,null,null,"TOTAL III ( fără TVA)",null,null,null,null,null,null,null,null,null,null,null,null,null,null,null,null,null,null,null,null,null,null,null,null,null,null,null,null,null,null,null,null,null,null,null,null,null,{"$f":"SUM(AQ463:AY466)","v":0},null,null,null,null,null,null,null,null,{"$f":"SUM(AZ463:BI466)","v":0}]
["TOTAL ( TOTAL I + TOTAL II +TOTAL III) fără TVA",null,null,null,null,null,null,null,null,null,null,null,null,null,null,null,null,null,null,null,null,null,null,null,null,null,null,null,null,null,null,null,null,null,null,null,null,null,null,null,null,null,{"$f":"AQ467+AQ461+AQ458","v":0},null,null,null,null,null,null,null,null,{"$f":"AZ467+AZ461+AZ458","v":0}]
["TVA aferent cheltuielilor eligibile şi neeligibile"]
["TOTAL DEVIZ PE OBIECT (inclusiv TVA)",null,null,null,null,null,null,null,null,null,null,null,null,null,null,null,null,null,null,null,null,null,null,null,null,null,null,null,null,null,null,null,null,null,null,null,null,null,null,null,null,null,{"$f":"AQ468+AZ468+AQ469+AZ469","v":0}]
[]
["Notă: Pentru a adăuga o nouă anexă accesaţi foaia (sheet) corespunzătoare sau click aici"]
[]
["Situaţia achiziţiilor publice efectuate până la depunerea Cererii de finanţare cu respectarea condiţiilor de eligibilitate a cheltuielilor prevăzute în fişa Măsurii M3/6B"]
["Nr. crt.",null,null,"Obiectul contractului",null,null,null,null,null,null,null,null,null,null,null,null,null,null,"Valoarea reală                         (Lei)",null,null,null,null,"Procedura aplicată",null,null,null,null,null,null,null,null,null,null,null,null,null,null,null,null,null,"Data începerii procedurii (zz/ll/aaaa)",null,null,null,null,null,null,"Data finalizarii procedurii (zz/ll/aaaa)",null,null,null,null,null,null,"Stadiul procedurii"]
[1,null,null,"Servicii de consultanta"]
[2,null,null,"Elaborarea Studiului de Fezabilitate"]
[3]
[4]
[5]
[6]
[7]
["Declar pe proprie raspundere ca informatiile din tabelul de mai sus sunt corecte si ca la atribuirea contractelor de servicii mentionate au fost respectate prevederile legislatiei nationale in vigoare privind procedura de achizitie publica"]
[]
["Reprezentant legal, Nume/Prenume"]
["Semnatura si ştampila"]
[]
[]
[null,null,null,null,null,null,null,"MINISTERUL AGRICULTURII ŞI DEZVOLTĂRII RURALE",null,null,null,null,null,null,null,null,null,null,null,null,null,null,null,null,null,null,null,null,null,null,null,null,null,null,null,null,null,null,null,null,null,null,"Anexa A3\nHG 907/2016"]
[]
[null,null,null,null,null,null,null,"AGENŢIA PENTRU FINANŢAREA INVESTIŢIILOR RURALE"]
[]
[]
[]
["(Titlu deviz)"]
["Deviz capitolul 2- Cheltuieli pentru asigurarea utilităţilor necesare obiectivului - EURO"]
["Nr.crt",null,null,null,"Specificaţie",null,null,null,null,null,null,null,null,null,null,null,null,null,null,null,null,null,null,null,null,null,null,null,null,null,null,null,null,null,null,null,null,null,null,null,null,null,"Valoare eligibilă",null,null,null,null,null,null,null,null,"Valoare\nneeligibilă"]
[1,null,null,null,"Alimentare cu apă"]
[2,null,null,null,"Canalizare"]
[3,null,null,null,"Alimentare cu gaze naturale"]
[4,null,null,null,"Alimentare cu agent termic"]
[5,null,null,null,"Alimentare cu energie electrică"]
[6,null,null,null,"Telecomunicaţii (telefonie, radio-tv,etc)"]
[7,null,null,null,"Drumuri de acces"]
[8,null,null,null,"Căi ferate industriale"]
[9,null,null,null,"Alte utilități"]
[null,null,null,null,"TOTAL DEVIZ CAPITOLUL 2",null,null,null,null,null,null,null,null,null,null,null,null,null,null,null,null,null,null,null,null,null,null,null,null,null,null,null,null,null,null,null,null,null,null,null,null,null,{"$f":"SUM(AQ498:AY506)","v":0},null,null,null,null,null,null,null,null,{"$f":"SUM(AZ498:BI506)","v":0}]
[null,null,null,null,"Valoare TVA aferentă cheltuielilor eligibile şi neeligibile"]
["TOTAL DEVIZ CAPITOLUL 2 (inclusiv TVA)",null,null,null,null,null,null,null,null,null,null,null,null,null,null,null,null,null,null,null,null,null,null,null,null,null,null,null,null,null,null,null,null,null,null,null,null,null,null,null,null,null,{"$f":"AQ507+AZ507+AQ508+AZ508","v":0}]
[]
[" Deviz capitolul 5 - Alte cheltuieli - EURO"]
["Nr.crt",null,null,null,"Specificaţie",null,null,null,null,null,null,null,null,null,null,null,null,null,null,null,null,null,null,null,null,null,null,null,null,null,null,null,null,null,null,null,null,null,null,null,null,null,"Valoare eligibilă",null,null,null,null,null,null,null,null,"Valoare\nneeligibilă"]
[]
["5.1 ",null,null,null,"Organizare de şantier",null,null,null,null,null,null,null,null,null,null,null,null,null,null,null,null,null,null,null,null,null,null,null,null,null,null,null,null,null,null,null,null,null,null,null,null,null,{"$f":"SUM(AQ515:AY516)","v":0},null,null,null,null,null,null,null,null,{"$f":"SUM(AZ515:BI516)","v":0}]
[null,null,null,null,"5.1.1 Lucrări de construcţii şi instalaţii aferente organizării de şantier"]
[null,null,null,null,"5.1.2 Cheltuieli conexe organizării de şantier"]
["5.2",null,null,null,"Comisioane, cote, taxe, costul creditului",null,null,null,null,null,null,null,null,null,null,null,null,null,null,null,null,null,null,null,null,null,null,null,null,null,null,null,null,null,null,null,null,null,null,null,null,null,{"$f":"SUM(AQ519:AQ522)-AQ521","v":0},null,null,null,null,null,null,null,null,{"$f":"SUM(AZ518:BI522)","v":0}]
[null,null,null,null,"5.2.1. Comisioanele şi dobânzile aferente creditului băncii finanţatoare",null,null,null,null,null,null,null,null,null,null,null,null,null,null,null,null,null,null,null,null,null,null,null,null,null,null,null,null,null,null,null,null,null,null,null,null,null,1]
[null,null,null,null,"5.2.2. Cota aferentă ISC pentru controlul calităţii lucrărilor de\nconstrucţii"]
[null,null,null,null,"5.2.3. Cota aferentă ISC pentru controlul statului în amenajarea teritoriului, urbanism şi pentru autorizarea lucrărilor de construcţii"]
[null,null,null,null,"5.2.4. Cota aferentă Casei Sociale a Constructorilor - CSC"]
[null,null,null,null,"5.2.5. Taxe pentru acorduri, avize conforme şi autorizaţia de construire/desfiinţare"]
["5.3",null,null,null," Cheltuieli diverse si neprevazute"]
["5.3",null,null,null,"Cheltuieli pentru informare și publicitate",null,null,null,null,null,null,null,null,null,null,null,null,null,null,null,null,null,null,null,null,null,null,null,null,null,null,null,null,null,null,null,null,null,null,null,null,null,0,null,null,null,null,null,null,null,null,0]
[null,null,null,null,"TOTAL DEVIZ CAPITOLUL 5",null,null,null,null,null,null,null,null,null,null,null,null,null,null,null,null,null,null,null,null,null,null,null,null,null,null,null,null,null,null,null,null,null,null,null,null,null,{"$f":"AQ514+AQ517+AQ524","v":0},null,null,null,null,null,null,null,null,{"$f":"AZ524+AZ523+AZ517+AZ514","v":0}]
[null,null,null,null,"VALOARE TVA aferentă cheltuielilor eligibile şi neeligibile"]
[null,null,null,null,"TOTAL DEVIZ CAPITOLUL 5 ( inclusiv TVA)",null,null,null,null,null,null,null,null,null,null,null,null,null,null,null,null,null,null,null,null,null,null,null,null,null,null,null,null,null,null,null,null,null,null,null,null,null,{"$f":"AQ525+AZ525+AQ526+AZ526","v":0}]
[]
["Notă: Pentru a adăuga o nouă anexă accesaţi foaia (sheet) corespunzătoare sau click aici"]
[]
[]
["MINISTERUL AGRICULTURII ŞI DEZVOLTĂRII RURALE",null,null,null,null,null,null,null,null,null,null,null,null,null,null,null,null,null,null,null,null,null,null,null,null,null,null,null,null,null,"SECTIUNE SPECIFICA MASURA M3/6B"]
["AGENŢIA PENTRU FINANŢAREA INVESTIŢIILOR RURALE"]
[]
["D. ALTE INFORMAȚII :"]
["Programarea proiectului:"]
["Numar luni de implementare"]
[]
["E. LISTA DOCUMENTELOR ANEXATE PROIECTELOR AFERENTE MĂSURII M3/6B ",null,null,null,null,null,null,null,null,null,null,null,null,null,null,null,null,null,null,null,null,null,null,null,null,null,null,null,null,null,null,null,null,null,null,null,null,null,null,null,null,null,null,null,null,null,null,null,null,null,null,null,null,null,null,"OPIS"]
[null,null,null,null,null,null,null,null,null,null,null,null,null,null,null,null,null,null,null,null,null,null,null,null,null,null,null,null,null,null,null,null,null,null,null,null,null,null,null,null,null,null,null,null,null,null,null,null,null,null,null,null,null,null,null,"documente"]
["Documentele se vor anexa cererii de finanțare în ordinea de mai jos:"]
["Lista documente",null,null,null,null,null,null,null,null,null,null,null,null,null,null,null,null,null,null,null,null,null,null,null,null,null,null,null,null,null,"Obligatoriu pentru toate proiectele",null,null,null,null,"Obligatoriu, dacă proiectul impune",null,null,null,null,null,null,"PAGINA de   la - până la",null,null,null,null,null,null,null,"Obligatoriu pentru toate proiectele",null,null,null,null,"Obligatoriu, dacă proiectul impune"]
["ETAPA:",null,null,null,null,null,null,null,null,null,null,null,null,null,null,null,null,null,null,null,null,null,null,null,null,null,null,null,null,null,"DEPUNERE",null,null,null,null,null,null,null,null,null,null,null,null,null,null,null,null,null,null,null,"CONTRACTARE"]
["1. Studiul de Fezabilitate/Documentaţia de Avizare pentru Lucrări de Intervenţii, întocmit/ă conform legislaţiei în vigoare privind etapele de elaborare şi conţinutul-cadru al documentaţiilor tehnico-economice aferente obiectivelor/ proiectelor de investiţii finanţate din fonduri publice./ Memoriu justificativ  (în cazul achizițiilor simple și dotărilor care nu presupun montaj)."]
["2.1Certificat de Urbanism, valabil la data depunerii Cererii de Finanţare, eliberat în condiţiile legii (Legea 50/1991 privind autorizarea executării lucrărilor de construcţii–Republicare, cu modificările şi completările ulterioare). Pentru investiţiile care vizeaza constructia, modernizarea si extinderea cladirilor, certificatul de Urbanism va fi  însotit de Avizul cu recomandari emis de catre filiala teritoriala a Ordinului Arhitecţilor, care confirmă respectarea arhitecturii specifice locale la faza de Studiu de Fezabilitate/ Documentaţia de Avizare a Lucrărilor de Intervenţii."]
["3.1 Pentru autoritatile publice locale și ADI\nInventarul bunurilor care aparțin domeniului public al UAT/UAT-urilor, întocmit conform legislaţiei privind proprietatea publică şi regimul juridic al acesteia atestat prin Hotărâre a Guvernului şi publicat în Monitorul Oficial al României (copie după Monitorul Oficial).\nÎn cazul în care inventarul bunurilor unui UAT nu a fost atestat înainte de intrarea în vigoare a OUG nr. 57/2019 privind Codul Administrativ, cu modificările și completările ulterioare, atunci se va prezenta Hotărârea de Consiliu Local (doc. 3.2) privind atestarea inventarului respectiv, întocmită conform OUG nr. 57/2019 cu modificările și completările ulterioare.\nşi"]
["3.2. Hotărârea Consiliului Local privind aprobarea inventarului, precum și cea de modificare şi/sau completare, întocmită conform OUG nr. 57/2019, cu modificările și completările ulterioare, în sensul includerii în domeniul public sau detalierii unei/unor poziții globale existente, clasificării unor drumuri neclasificate, sau reclasificării din alte drumuri, publice sau private.\nSe va atașa la hotarâre documentul emis de Instituția Prefectului care confirmă că respectiva hotărâre de consiliu local a fost supusă controlului de legalitate al Prefectului, conform prevederilor art. 255 ale OUG nr. 57/2019 privind Codul Adiministrativ, cu completările și modificările ulterioare. \nIMPORTANT! Nu se vor lua în considerare modificările și/sau completările de inventar dacă respectivul inventar astfel modificat nu a fost atestat fie prin Hotărâre de Guvern (pentru situațiile de dinaintea intrării în vigoare a OUG 57/2019) fie prin HCL întocmită în condițiile prevăzute de OUG 57/2019 privind Codul administrativ. \n"]
[" 3.3 Documente doveditoare ale dreptului de proprietate /administrare al ONG-urilor, Unităților de cult, Persoanelor fizice autorizate / societăților comerciale asupra bunurilor imobile la care se vor efectua lucrări, pe o perioadă de 10 ani asupra bunurilor imobile la care se vor efectua lucrări, conform Cererii de Finanţare"]
["4.1 Hotărârea Consiliului Local / Hotaririle Consiliului Local în cazul ADI/\nHotararea Adunarii Generala în cazul ONG pentru implementarea\nproiectului, cu referire la următoarelor puncte (obligatorii):\n-  potentialul economic, oportunitatea si necesitatea socio-economica a investitiei;\n- lucrările vor fi prevăzute în bugetul solicitantului pentru perioada de realizare a investiţiei, în cazul în care se obţine finanţarea;\n- angajamentul de a suporta cheltuielile de întreţinere/mentenanță a investiţiei pe o perioadă de minimum 5 ani de la data efectuării ultimei plăți;\n- caracteristici tehnice ale investiției/investițiilor propuse (lungimi, arii, volume, capacităţi etc.);\n-numărul de locuitori deserviţi de proiect sau numarul de utilizatori direcţi ;\n- nominalizarea şi delegarea reprezentantului legal al solicitantului pentru relaţia cu AFIR în derularea proiectului.\n- angajamentul de asigurare a cofinantarii, daca este cazul.                                                                   sau \n\n4.2 Hotărârea organului de conducere specific fiecărei categorii de solicitanți cu referire la însuşirea / aprobarea de către ONG, Unitate de cult, Persoană fizică autorizată / Societate Comercială  a următoarelor (condiții obligatorii):\n- potentialul economic, oportunitatea si necesitatea socio-economica a investitiei;\n- lucrările vor fi prevăzute în bugetul solicitantului pentru perioada de realizare a investiţiei, în cazul în care se obţine finanţarea;\n-angajamentul de a suporta cheltuielile de întreţinere/mentenanță a investiţiei pe o perioadă de minimum 5 ani de la data efectuării ultimei plăți;\n- caracteristici tehnice ale investiției/investițiilor propuse (lungimi, arii, volume, capacităţi etc.);\n- numărul de locuitori deserviţi de proiect sau numarul de utilizatori direcţi ;\n- nominalizarea şi delegarea reprezentantului legal al solicitantului pentru relaţia cu AFIR în derularea proiectului.\n- angajamentul de asigurare a cofinantarii, daca este cazul.                                                              "]
["5.1 Certificatul de înregistrare fiscală"]
["5.2 Încheiere privind înscrierea în Registrul Asociațiilor și Fundațiilor,\nrămasă definitivă / Certificat de înregistrare în\nRegistrul Asociațiilor și Fundațiilor"]
["5.3 Actul de înfiinţare şi statutul ADI/ONG"]
["5.4 Actul Constitutiv, Certificatul de înregistrare a firmei, Hotărârea tribunalului de pe lângă ONRC, Certificat constatator eliberat de ONRC"]
["5.5 Actul de înfiinţare şi statutul unitatii de cult"]
["6. Lista agenţilor economici deserviţi de proiect, care va conţine denumirea, adresa, activitatea desfăşurată"]
["7. Raport asupra utilizării programelor de finanţare nerambursabilă\nîntocmit de solicitant (va cuprinde obiective, tip de investiție, lista\ncheltuielilor eligibile, costurile și stadiul proiectului, perioada derulării\ncontractului), pentru solicitantii care au mai beneficiat de finanțare\nnerambursabilă începând cu anul 2007, pentru aceleași tipuri de investiții."]
["8. Extrasul din strategie, care confirma daca investiția este în corelare cu\norice strategie de dezvoltare națională / regional / județeană / locală\naprobată, corespunzătoare domeniului de investiții precum și copia\nhotărârii de aprobare a strategiei."]
["9. Copia Documentului de identitate al reprezentantului legal al\nbeneficiarului."]
["10. Document eliberat de Primărie/ Centrul eparhial ( în cazul Unităţilor de Cult)/ Comitet director al ONG/Societate comercială, din care să rezulte numărul de activităţi desfăşurate ce au avut loc în ultimele 12 luni, anterioare datei depunerii Cererii de Finanţare "]
["11. Avizul emis de către Ministerul Culturii sau, după caz, de către serviciile publice deconcentrate ale Ministerului Culturii respectiv Direcțiile Judeţene pentru Cultură pe raza cărora sunt amplasate obiectivele, conform Legii nr. 422/2001 privind protejarea monumentelor istorice, republicată, cu modificările și completările ulterioare  sau un Certificat emis de INP (în cazul obiectivelor neclasificate), care să confirme faptul că obiectivul propus spre finanțare face parte din patrimoniul cultural de interes local – clasa (grupa) B şi că se poate interveni asupra lui (documentația este adecvată)."]
["12. Dovadă eliberată de Muzeul județean, prin care se certifică verificarea documentară și pe teren, dacă este cazul, asupra unor intervenții antropice cu caracter arheologic în perimetrul aferent proiectului propus pentru finanțare nerambursabilă (OG nr. 43/2000 privind protecția patrimoniului arheologic și declararea unor situri arheologice ca zone de interes național, republicată, cu modificările și completările ulterioare)"]
["13. Document/e justificativ/e (ex.: afișe, pliante, anunțuri, procese ‐ verbale etc eliberat/e de Primărie/Centru eparhial (în cazul unităților de cult)/Comitet director al ONG/Societate comercială din care să rezulte activităţile desfășurate în ultimele 12 luni, anterioare datei depunerii Cererii de Finanţare."]
["14. Copie Ordin de clasare ca monument istoric de interes local clasa (grupa) B conform Legii 422/2001 și copie Monitor Oficial al Rmâniei Partea I în care a fost publicat, dacă este cazul"]
["15. Lista obiectivelor de interes local aprobata de catre fiecare UAT insotita de Hotararea Consiliului Local prin care a fost aprobata."]
["16.  Contractul/acordul proprietarului retelei publice de iluminat/ liniei electrice privind dreptul de folosinta asupra infrastructurii sistemului de distributie din partea proprietarului acesteia pe toata durata de implementare si monitorizare a proiectului pentru investitiile  ce vizeaza modernizarea retelei publice de iluminat prin executarea unor investitii ce nu prevad executarea unor lucrari de constructii, daca este cazul."]
["17. Contractul cu proprietarul retelei publice de iluminat privind dreptul de folosinta asupra infrastructurii retelei publice de iluminat din partea proprietarului acesteia pe toata durata de implementare si monitorizare a proiectului, insotit de acordul proprietarului infrastructurii privind amplasarea sistemului public de supraveghere (acordul proprietarului poate fi mentionat explicit si in cadrul contractului care atesta dreptul de folosinta a infrastructurii), in cadrul actiunilor ce vizeaza infiintarea, modernizarea sau extinderea sistemelor publice de supraveghere prin executarea unor investitii ce nu prevad executarea unor lucrari de constructii."]
["18.  Hotararea Consiliului Local de infiintare a serviciului public insotita de inventarul bunurilor din cadrul serviciului respectiv, daca este cazul"]
["19. Declaratia benficiarului privind raportarea platilor primite catre GAL"]
["20. Declarația pe propria răspundere a solicitantului privind durata de execuție a contractului de finanțare, conform modelului din Anexa 15 la ghidul solicitantului"]
["21. Declaraţia pe propria răspundere că beneficiarii nu se încadrează în definiţia întreprinderii în dificultate, doar în cazul beneficiarilor persoane juridice de drept privat fără scop patrimonial , conform modelului din Anexa 17 la ghidul solicitantului"]
["22. Declaraţie pe propria răspundere a solicitantului cu privire la respectarea regulii privind cumulul ajutoarelor, în conformitate cu prevederile  Ordinului nr. 107/24.04.2017 al ministrului agriculturii și dezvoltării rurale, doar în cazul beneficiarilor persoane juridice de drept privat fără scop patrimonial, conform modelului din Anexa 16 la ghidul solicitantului "]
["23. Situațiile financiare aferente ultimului şi penultimului exercițiu financiar anual încheiat, depuse la organele financiare competente, cu excepția întreprinderilor încadrate în categoria start-up, în cazul persoanelor juridice de drept privat fără scop patrimonial"]
["24. Declarația de inactivitate înregistrată la Administrația Financiară, în cazul solicitanților care nu au desfășurat activitate anterior depunerii proiectului"]
["25. Lista monumentelor istorice 2015, conform Anexei nr.1 la Ordinul ministerului culturii și cultelor nr. 2314/2004, cu modificările ulterioare, astfel cum a fost modificată și completată prin Ordinul ministerului culturii nr.2.828/2015. În cazul în care clasarea bunului imobil s-a realizat după ultima modificare a Listei monumentelor istorice, se va prezenta copia Ordinului ministrului culturii de clasare și copia Monitorului Oficial al României Partea I în care a fost publicat (doar pentru obiectivele de patrimoniu din clasa/ grupa B)"]
["26. Certificat/e care să ateste lipsa datoriilor restante fiscale, emise de Direcţia Generală a Finanţelor Publice şi, dacă este cazul, graficul de reeşalonare a datoriilor către bugetul consolidat. \n"]
["21. Document care să ateste că a depus documentaţia la ANPM:"]
["21.1 Clasarea notificării\nsau"]
["21.2 Decizia etapei de încadrare, ca document final (prin care se precizează că proiectul nu se supune evaluării impactului asupra mediului şi nici evaluării adecvate)\nsau"]
["21.3 Acord de mediu în cazul în care se impune evaluarea impactului\npreconizat asupra mediului\nsau"]
["21.4 Acord de mediu în cazul evaluării impactului asupra mediului și de\nevaluare adecvată (dacă este cazul)."]
["21.5 Aviz Natura 2000 pentru proiectele care impun doar evaluare\nadecvată."]
["27. Certificat de  cazier judiciar al reprezentantului legal"]
["28. Certificatul de cazier fiscal al solicitantului"]
["29. Declaraţia de eşalonare a depunerii dosarelor cererilor de plată, inclusiv cea pentru decontarea TVA unde este cazul"]
["30. Dovada achitarii integrale a datoriei faţă de AFIR, inclusiv dobânzile şi majorările de întârziere, dacă este cazul "]
["31. Document de la bancă / trezorerie cu datele de identificare ale băncii / trezoreriei şi ale contului aferent proiectului FEADR (denumirea, adresa băncii / trezoreriei, codul IBAN al contului în care se derulează operaţiunile cu AFIR).                                                               "]
["32. Extras de cont care confirma cofinantarea investitiei, daca este cazul.                                                   "]
["33. Alte documente justificative (Se vor specifica dupa caz)"]
[]
[]
[]
[]
["F. DECLARAŢIE PE PROPRIA RĂSPUNDERE A SOLICITANTULUI"]
["Prin această declaraţie solicitantul"]
[]
["care solicită asistență financiară nerambursabilă prin programul FEADR pentru proiectul intitulat"]
[]
["prin reprezentant legal"]
[]
["cunoscând prevederile legii penale cu privire la falsul în declarații:"]
[null,null,null,"1. Declar că proiectul propus asistenței financiare nerambursabile FEADR nu beneficiază de altă finanțare din\nprograme de finanțare nerambursabilă."]
["De asemenea mă angajez ca în cazul în care proiectul va fi selectat pentru finanțare FEADR, nu voi depune acest\nproiect la nici un alt program de finanțare nerambursabilă la care proiectul poate fi în întregime sau parțial eligibil\npentru asistență."]
[null,null,null,"2. Declar că îndeplinesc condițiile de eligibilitate prevăzute în fișa sub-măsurii și Ghidul Solicitantului și mă\nangajez să le respect pe perioada de valabilitate a contractului de finanțare și monitorizare a investiției, inclusiv\ncriteriile de selecție pentru care proiectul a fost punctat."]
[null,null,null,"3. Declar că toate informațiile din prezenta cerere de finanțare și din documentele anexate sunt corecte și mă\nangajez să respect condițiile cerute în reglementările referitoare la prezentul program și pe cele legate de\nproiectul anexat și să furnizez periodic, la cerere, documentele justificative necesare."]
[null,null,null,"4. Declar pe propria răspundere că orice modificări aduse dreptului de proprietate sau de folosință vor fi\nnotificate AFIR în termen de trei zile de la data producerii lor."]
["  5. Declar că eu și organizația mea (UAT,ADI, ONG, Unitate de Cult, PFA sau SC) nu ne aflăm într-unul din următoarele cazuri:"]
[null,null,null,"Acuzat din cauza unei greșeli privind conduita profesională având ca soluție finală res judicata (împotriva căreia nici un apel nu este posibil)"]
[null,null,null,"Vinovat de grave deficiențe de conduită profesională dovedite prin orice mijloace pe care Agenția le poate justifica."]
[null,null,null,"Vinovat de faptul că nu am prezentat informaţiile cerute de autoritatea contractantă ca o condiţie de participare la licitaţie sau contractare"]
[null,null,null,"Încălcarea prevederilor contractuale prin care nu mi-am îndeplinit obligațiile contractuale în legătură cu un alt contract cu Agenția sau alte contracte finanțate din fonduri comunitare."]
[null,null,null,"Încercarea de a obține informații confidențiale sau de influențare a Agenției în timpul procesului de evaluare a proiectului și nu voi face presiuni la adresa evaluatorului."]
["6.",null,null,null,null,"Declar că organizația pe care o reprezint ARE datorii către instituții de credit și/sau instituții financiare\nnebancare. În acest sens, atașez Graficul de rambursare a datoriilor și document de la bancă pentru\ncertificarea respectării graficului de rambursare."]
[null,null,null,null,null,"Declar că organizația pe care o reprezint NU are datorii către instituții de credit şi/sau instituții financiare\nnebancare."]
["7.",null,null,null,null,"Declar pe propria răspundere ca în cazul în care nu respect oricare din punctele prevăzute în această\ndeclarație proiectul să devină neeligibil în baza criteriului \"Eligibilitatea solicitantului\" sau contractul să fie\nreziliat."]
["8.",null,null,null,null,"Declar pe propria răspundere că:"]
[null,null,null,null,null,"Nu sunt înregistrat în scopuri TVA și că mă angajez să notific Agenției orice modificare a situatiei privind înregistrarea ca plătitor de TVA, în maximum 10 (zece) zile de la data înregistrării în scopuri TVA."]
[null,null,null,null,null,"Sunt înregistrat în scopuri de TVA (certificat de înregistrare fiscală în scopuri de TVA)."]
["9.",null,null,null,null,"Declar pe propria răspundere că nu am înscrieri care privesc sancțiuni economico-financiare în cazierul\njudiciar pe care mă oblig să îl depun la încheierea contractului de finanțare."]
["10.",null,null,null,null,"Declar pe propria raspundere că nu am fapte înscrise în cazierul fiscal."]
["11.",null,null,null,null,"Declar pe propria răspundere că toate cheltuielile neeligibile vor fi suportate de solicitant și că acestea vor fi realizate până la finalizarea proiectului."]
["12.",null,null,null,null,"Ma angajez ca in termenul precizat  în notificarea AFIR privind selecţia cererii de finanţare, de la data primirii \"Notificarii beneficiarului privind selectarea cererii de finantare si semnarea contractului de finantare\", sa asigur si sa prezint documentele obligatorii mentionate in cadrul acesteia, precum si cele mentionate in Ghidul solicitantului ca fiind necesare pentru contractarea proiectului, respectiv ma angajez ca pana la depunerea ultimei cereri de plata sa asigur si sa prezint documentele obligatorii mconform procedurilor de implementare ale AFIR si legislatiei in vigoare."]
["13.",null,null,null,null,"Declar pe proprie raspundere ca voi achita integral datoria fata de AFIR, inclusiv dobanzile si majorarile de\nintarziere pana la semnarea contractului de finantare (pentru solicitantii inregistrati in registrul debitorilor AFIR atat pentru programul SAPARD cat si pentru FEADR)."]
["14.",null,null,null,null,"Declar pe propria răspundere ca nu sunt în insolventă sau incapacitate de plată."]
["15.",null,null,null,null," Declar pe propria răspundere că în conformitate cu termenul menţionat în notificarea AFIR privind selecţia cererii de finanţare, voi obţine şi depune, înainte de semnarea contractului de finanţare, documentul emis de ANPM menţionat în secţiunea E punctul 21 a cererii de finanţare."]
["16.",null,null,null,null,"Ma angajez că după realizarea investiției in patrimoniul cultural, aceasta să fie înscrisă într-o rețea de promovare turistică."]
["17.",null,null,null,null,"Accept publicarea pe site-ul AFIR și a GAL ADA KALEH a datelor mele cu respectarea legislaţiei naţionale şi europene privind transparenţa."]
[]
["Semnătura reprezentant legal şi ştampila",null,null,null,null,null,null,null,null,null,null,null,null,null,null,null,null,null,null,null,null,null,null,null,null,null,null,null,null,null,null,null,null,null,null,null,null,null,null,null,null," Data:"]
[]
[]
[]
["Anexa INDICATORI DE MONITORIZARE"]
["Măsura M3/6B \"DEZVOLTARE LOCALA\""]
[]
["1. Tipul de sprijin",null,null,null,null,null,null,null,null,null,null,null,null,null,null,null,null,"Infiintarea, extinderea si modernizarea retelei publice de iluminat, a sistemelor publice de supraveghere"]
[null,null,null,null,null,null,null,null,null,null,null,null,null,null,null,null,null,"Investitii în statii de transfer pentru deseuri, platforme de depozitare a deseurilor sau dotarea cu echipamente de gestionare a deseurilor              "]
[null,null,null,null,null,null,null,null,null,null,null,null,null,null,null,null,null,"Amenajare trotuare si alei pietonale              "]
[null,null,null,null,null,null,null,null,null,null,null,null,null,null,null,null,null,"Investitii in crearea, modernizarea si dotarea infrastructurii educationale.         "]
[null,null,null,null,null,null,null,null,null,null,null,null,null,null,null,null,null,"Investitii in imbunatatirea calitatii serviciilor medicale              "]
[null,null,null,null,null,null,null,null,null,null,null,null,null,null,null,null,null,"Înfiintarea, amenajarea spatiilor publice de recreere (parcuri, spatii de joaca pentru copii, terenuri de sport - inclusiv sali de sport, piste de biciclete etc)"]
[null,null,null,null,null,null,null,null,null,null,null,null,null,null,null,null,null,"Renovarea cladirilor publice (ex. primarii) si amenajari de parcari, piete, spatii pentru organizarea de târguri etc. "]
[null,null,null,null,null,null,null,null,null,null,null,null,null,null,null,null,null,"Investitii în sisteme de producere si utilizare de energie din surse regenerabile ca parte componenta a unui proiect "]
[null,null,null,null,null,null,null,null,null,null,null,null,null,null,null,null,null,"Achizitionarea de utilaje si echipamente pentru serviciile publice"]
[null,null,null,null,null,null,null,null,null,null,null,null,null,null,null,null,null,"Investitii de renovare, modernizare si dotare a asezamintelor culturale"]
[null,null,null,null,null,null,null,null,null,null,null,null,null,null,null,null,null,"Restaurarea, consolidarea si conservarea obiectivelor de patrimoniu cultural imobil de interes local de clasa B"]
[null,null,null,null,null,null,null,null,null,null,null,null,null,null,null,null,null,"Renovarea, reabilitarea si promovarea unor obiective de patrimoniu local care nu se regasesc in Lista momumentelor istorice de clasa B, dar care reprezinta valori ale patrimoniului local, a spatiilor destinate pastrarii si transmiterii de mestesuguri, traditii si alte tipuri de activitati traditionale, reabilitarea si refunctionalizarea de obiective/ constructii care păstrează caracteristicile patrimoniului construit tradițional, autentic (de exemplu: mori de apa, varnite, stane, etc) si care se vor regasi intr-o lista a obiectivelor de interes local aprobata de catre fiecare UAT"]
[null,null,null,null,null,null,null,null,null,null,null,null,null,null,null,null,null,"Investitii in infrastructura turistica la scara mica (constructia/ modernizarea centrelor de informare turistica, informare si ghidare a vizitatorilor, constructia de adaposturi si facilitati legate de turismul local, marcarea de trasee turistice) si in activitati de promovare turistica a zonei (realizarea de ghiduri turistice, website-uri de prezentare, panouri de informare, festivaluri etc.)"]
[null,null,null,null,null,null,null,null,null,null,null,null,null,null,null,null,null,"Restaurarea bisericilor, cimitirelor si a altor obiective aflate în proprietatea parohiilor"]
["2. Numărul localitatilor sprijinite"]
["3. Număr locuitori  care beneficiază de servicii îmbunătățite"]
["4. Acțiuni pentru protecția mediului",null,null,null,null,null,null,null,null,null,null,null,null,null,null,null,null,null,null,null,null,null,null,null,null,null,null,null,null,null,null,null,null,null,null,null,null,null,null,null,null,null,null,null,null,null,null,null,null,null,"        DA            NU"]
["5. Acțiuni inovative",null,null,null,null,null,null,null,null,null,null,null,null,null,null,null,null,null,null,null,null,null,null,null,null,null,null,null,null,null,null,null,null,null,null,null,null,null,null,null,null,null,null,null,null,null,null,null,null,null,"        DA            NU"]
["6. Numar de locuri de munca nou create"]
[]
["Indic. nr. 1 - se va bifa doar o singura categorie/ categoria majoritară"]
["Indic. nr. 2 - se va completa numărul localitatilor sprijinite prin proiect"]
["Indic. nr. 3 - se va completa numărul locuitorilor care beneficiaza de servicii imbunatatite ca urmare a implementării proiectului"]
["Indic. nr. 4, 5 - dacă în cadrul proiectului sunt prevăzute acțiuni pentru protecția mediului,  respectiv acțiuni inovative se va bifa DA, în caz contrar NU           "]
["Indic. nr. 6 - se va completa numărul de locuri de munca nou create ca urmare a implementării proiectului  "]
["Pentru indicatorii de tip numeric care nu fac obiectul investitiei sa va completa valoarea zero."]
[]
[]
["Codul unic de inregistrare APIA"]
["In cazul in care nu aveti un cod unic de inregistrare APIA, completati acest formular."]
[]
["FORMULAR"]
[]
["Programului naţional de dezvoltare rurală 2014 - 2020"]
[]
["Denumire solicitant:"]
[]
["Categorie Solicitant:"]
[]
["Sediul / Adresa"]
[]
["Ţara",null,null,null,null,"România",null,null,null,null,null,null,null,null,"Judeţul",null,null,null,null,null,null,null,null,null,null,null,null,null,null,null,null,null,null,"oraşul"]
[]
["comuna",null,null,null,null,null,null,null,null,null,null,null,null,null,null,null,null,null,null,null,null,"satul",null,null,null,null,null,null,null,null,null,null,null,null,null,null,null,null,null,"strada"]
[]
["nr.",null,null,null,null,null,null,null,"bl.",null,null,null,null,null,"et.",null,null,null,null,"ap.",null,null,null,null,null,"sectorul",null,null,null,null,null,null,null,null,null,null,null,null,"codul poştal"]
[]
["Număr de telefon",null,null,null,null,null,null,null,null,null,null,null,null,null,null,null,null,null,null,null,null,null,null,"Fax",null,null,null,null,null,null,null,null,null,null,null,null,null,null,"E-mail"]
[]
["Număr de înregistrare în registrul comerțului/Registrul asociațiilor și fundațiilor"]
[]
["CUI / CIF"]
[]
["Cod CAEN pentru activitatea principală"]
[]
["Cod CAEN pentru activitatea secundară pentru care se solicită înregistrarea în Registrul unic de identificare"]
[]
["Cod IBAN"]
[]
["deschis la Banca"]
[]
["Sucursala / Agenție"]
[]
["Prin reprezentant legal, doamna/domnul"]
[]
["cu CNP",null,null,null,null,null,null,null,null,null,null,null,null,null,null,"solicit înscrierea în Registrul unic de identificare -Agenţia de Plăţi şi Intervenţie pentru Agricultură."]
[]
["Am luat la cunoştinţă că orice modificare a informaţiilor de mai sus trebuie furnizată către APIA în termen de maximum 10 zile\nlucrătoare de la producerea acestora.\nDeclar pe propria răspundere că cele de mai sus sunt conforme cu realitatea.\nSunt de acord ca datele din cerere să fie introduse în baza de date a Sistemului Integrat de Administrare şi Control, procesate şi\nverificate în vederea înscrierii în Registrul unic de identificare şi transmise autorităţilor responsabile în vederea elaborării de studii\nstatistice şi de evaluări economice, în condiţiile Legii nr. 677-2001 pentru protecţia persoanelor cu privire la prelucrarea datelor cu\ncaracter personal şi libera circulaţie a acestor date, cu modificarile şi completările ulterioare."]
[]
["Reprezentant legal",null,null,null,null,null,null,null,null,null,null,null,null,null,null,null,null,null,null,null,null,null,null,null,null,null,null,null,null,null,null,null,null,null,null,null,null,null,null,null,null,null,null,"Data:"]
[]
["Numele şi prenumele"]
[]
["Semnătura "]

{"sheet":"Anexa 1","index":1,"n_rows":49,"n_cols":52,"rows_kept":49,"cut":false,"hidden":false,"merged":[[13,0,13,3],[13,4,13,41],[13,42,13,50],[7,0,7,60],[8,0,8,60],[11,0,11,3],[11,4,11,41],[11,42,11,50],[11,51,11,60],[13,51,13,60],[2,7,2,41],[3,7,3,41],[4,7,4,41],[10,0,10,3],[10,4,10,41],[10,42,10,50],[10,51,10,60],[12,0,12,3],[12,4,12,41],[12,42,12,50],[12,51,12,60],[14,0,14,3],[14,4,14,41],[14,42,14,50],[14,51,14,60],[15,0,15,3],[15,4,15,41],[15,42,15,50],[15,51,15,60],[22,4,22,41],[22,42,22,50],[22,51,22,60],[18,4,18,41],[18,42,18,50],[18,51,18,60],[19,4,19,41],[19,42,19,50],[19,51,19,60],[16,4,16,41],[16,42,16,50],[16,51,16,60],[17,4,17,41],[17,42,17,50],[17,51,17,60],[20,0,20,3],[23,42,23,50],[23,51,23,60],[20,4,20,41],[20,42,20,50],[20,51,20,60],[21,4,21,41],[21,42,21,50],[21,51,21,60],[24,0,24,3],[24,4,24,41],[24,42,24,50],[24,51,24,60],[23,0,23,3],[23,4,23,41],[36,42,36,50],[36,51,36,60],[36,4,36,41],[39,4,39,41],[40,4,40,41],[30,4,30,41],[31,4,31,41],[32,4,32,41],[33,4,33,41],[32,51,32,60],[33,51,33,60],[30,42,30,50],[31,42,31,50],[32,42,32,50],[33,42,33,50],[30,51,30,60],[31,51,31,60],[35,42,35,50],[35,51,35,60],[34,51,34,60],[27,42,27,50],[27,51,27,60],[28,0,28,3],[29,0,29,3],[30,0,30,3],[31,0,31,3],[32,0,32,3],[33,0,33,3],[27,4,27,41],[28,4,28,41],[29,4,29,41],[28,42,28,50],[29,42,29,50],[28,51,28,60],[29,51,29,60],[47,0,47,3],[47,4,47,41],[47,42,47,50],[47,51,47,60],[37,4,37,41],[37,42,37,50],[37,51,37,60],[46,0,46,3],[46,4,46,41],[46,42,46,50],[46,51,46,60],[41,0,41,3],[41,42,41,50],[41,51,41,60],[42,0,42,3],[42,42,42,50],[39,0,39,3],[39,42,39,50],[39,51,39,60],[40,0,40,3],[40,42,40,50],[40,51,40,60],[45,51,45,60],[43,42,43,50],[34,0,34,3],[34,4,34,41],[34,42,34,50],[25,0,25,3],[25,4,25,41],[25,42,25,50],[26,0,26,3],[26,4,26,41],[25,51,25,60],[26,42,26,50],[26,51,26,60],[27,0,27,3],[48,0,48,41],[48,42,48,60],[1,7,1,41],[2,42,3,60],[4,42,4,50],[4,51,4,60],[5,7,5,60],[6,0,6,60],[9,0,9,3],[9,4,9,41],[9,42,9,50],[9,51,9,60],[38,4,38,41],[38,42,38,50],[38,51,38,60],[42,51,42,60],[41,4,41,41],[42,4,42,41],[43,4,43,41],[43,51,43,60],[38,0,38,3],[45,0,45,3],[35,0,35,3],[35,4,35,41],[44,4,44,41],[45,4,45,41],[44,42,44,50],[45,42,45,50],[44,51,44,60]]}
[]
[null,null,null,null,null,null,null,"MINISTERUL AGRICULTURII ŞI DEZVOLTĂRII RURALE"]
[null,null,null,null,null,null,null,null,null,null,null,null,null,null,null,null,null,null,null,null,null,null,null,null,null,null,null,null,null,null,null,null,null,null,null,null,null,null,null,null,null,null,"Anexa A1\nHG 907/2016"]
[null,null,null,null,null,null,null,"AGENŢIA PENTRU FINANŢAREA INVESTIŢIILOR RURALE"]
[]
[null,null,null,null,null,null,null,"Deviz financiar- Capitolul 3 - Cheltuieli pentru proiectare şi asistenţa tehnică - EURO"]
[]
[]
["(Titlu deviz)"]
["Nr.crt",null,null,null,"Specificaţie",null,null,null,null,null,null,null,null,null,null,null,null,null,null,null,null,null,null,null,null,null,null,null,null,null,null,null,null,null,null,null,null,null,null,null,null,null,"Valoare eligibilă",null,null,null,null,null,null,null,null,"Valoare\nneeligibilă"]
["3.1",null,null,null,"Cheltuieli pentru studii - total din care:",null,null,null,null,null,null,null,null,null,null,null,null,null,null,null,null,null,null,null,null,null,null,null,null,null,null,null,null,null,null,null,null,null,null,null,null,null,{"$f":"AQ12+AQ13+AQ14","v":0},null,null,null,null,null,null,null,null,{"$f":"AZ12+AZ13+AZ14","v":0}]
[null,null,null,null,"3.1.1 Studii de teren: studii geotehnice, geologice, hidrologice, hidrogeotehnice,\nfotogrammetrice, topografica şi de stabilitate ale terenului pe care se amplasează obiectivul de investiţie "]
[null,null,null,null,"3.1.2 Raport privind impactul asupra mediului"]
[null,null,null,null,"3.1.3 Studii de specialitate necesare în funcţie de specificul investiţiei"]
["3.2",null,null,null,"Documentaţii-suport şi cheltuieli pentru obţinerea de avize, acorduri şi\nautorizaţii",null,null,null,null,null,null,null,null,null,null,null,null,null,null,null,null,null,null,null,null,null,null,null,null,null,null,null,null,null,null,null,null,null,null,null,null,null,{"$f":"AQ16+AQ17+AQ18+AQ21+AQ22+AQ23+AQ24","v":0},null,null,null,null,null,null,null,null,{"$f":"AZ16+AZ17+AZ18+AZ19+AZ20+AZ21+AZ22+AZ23+AZ24","v":0}]
[null,null,null,null,"1. obţinerea/prelungirea valabilităţii ceritificatului de urbanism"]
[null,null,null,null,"2. obţinerea/prelungirea valabilităţii autorizaţiei de construire/desfiinţare"]
[null,null,null,null,"3. obţinerea avizelor şi acordurilor pentru racorduri şi branşamente la reţele publice\nde alimentare cu apă, canalizare, alimentare cu gaze, alimentare cu agent termic,\nenergie electrică, telefonie"]
[null,null,null,null,"4. obţinerea certificatului de nomenclatură stradală şi adresă"]
[null,null,null,null,"5. întocmirea documentaţiei, obţinerea numărului cadastral provizoriu şi\nînregistrarea terenului în cartea funciară"]
[null,null,null,null,"6. obţinerea actului administrativ al autorităţii competente pentru protecţia mediului"]
[null,null,null,null,"7. obţinerea avizului de protecţie civilă"]
[null,null,null,null,"8. avizul de specialitate în cazul obiectivelor de patrimoniu"]
[null,null,null,null,"9. alte avize, acorduri şi autorizaţii"]
["3.3",null,null,null,"Cheltuieli pentru expertizarea tehnică a construcţiilor existente, a structurilor\nşi/sau, după caz, a proiectelor tehnice, inclusiv întocmirea de către expertul\ntehnic a raportului de expertiză tehnică",null,null,null,null,null,null,null,null,null,null,null,null,null,null,null,null,null,null,null,null,null,null,null,null,null,null,null,null,null,null,null,null,null,null,null,null,null,0,null,null,null,null,null,null,null,null,0]
["3.4",null,null,null,"Cheltuieli pentru certificarea performanţei energetice şi auditul energetic al clădirilor",null,null,null,null,null,null,null,null,null,null,null,null,null,null,null,null,null,null,null,null,null,null,null,null,null,null,null,null,null,null,null,null,null,null,null,null,null,0,null,null,null,null,null,null,null,null,0]
["3.5",null,null,null,"Cheltuieli pentru proiectare",null,null,null,null,null,null,null,null,null,null,null,null,null,null,null,null,null,null,null,null,null,null,null,null,null,null,null,null,null,null,null,null,null,null,null,null,null,{"$f":"AQ28+AQ29+AQ30+AQ31+AQ32+AQ33","v":0},null,null,null,null,null,null,null,null,{"$f":"AZ28+AZ29+AZ30+AZ31+AZ32+AZ33","v":0}]
[null,null,null,null,"3.5.1 Temă de proiectare"]
[null,null,null,null,"3.5.2 Studiu de prefezabilitate"]
[null,null,null,null,"3.5.3 Studiu de fezabilitate/documentaţie de avizare a lucrărilor de intervenţii şi\ndeviz general"]
[null,null,null,null,"3.5.4 Documentaţiile tehnice necesare în vederea obţinerii avizelor/acordurilor/\nautorizaţiilor"]
[null,null,null,null,"3.5.5 Verificarea tehnică de calitate a proiectului tehnic şi a detaliilor de execuţie"]
[null,null,null,null,"3.5.6 Proiect tehnic şi detalii de execuţie"]
["3.6",null,null,null,"Cheltuieli aferente organizării şi derulării procedurilor de achiziţii publice",null,null,null,null,null,null,null,null,null,null,null,null,null,null,null,null,null,null,null,null,null,null,null,null,null,null,null,null,null,null,null,null,null,null,null,null,null,null,null,null,null,null,null,null,null,null,{"$f":"AZ35+AZ36+AZ37+AZ38","v":0}]
[null,null,null,null,"1. Cheltuieli aferente întocmirii documentaţiei de atribuire şi multiplicării acesteia (exclusiv cele cumpărate de ofertanţi)"]
[null,null,null,null,"2. Cheltuieli cu onorariile, transportul, cazarea şi diurna membrilor desemnaţi în comisiile de evaluare"]
[null,null,null,null,"3. Anunţuri de intenţie, de participare şi de atribuire a contractelor, corespondenţă\nprin poştă, fax, poştă electronică în legătură cu procedurile de achiziţie publică"]
[null,null,null,null,"4. Cheltuieli aferente organizării şi derulării procedurilor de achiziţii publice"]
["3.7",null,null,null,"Cheltuieli pentru consultanţă",null,null,null,null,null,null,null,null,null,null,null,null,null,null,null,null,null,null,null,null,null,null,null,null,null,null,null,null,null,null,null,null,null,null,null,null,null,{"$f":"AQ40","v":0},null,null,null,null,null,null,null,null,{"$f":"AZ40+AZ41","v":0}]
[null,null,null,null,"3.7.1 Managementul de proiect pentru obiectivul de investiţii"]
[null,null,null,null,"3.7.2 Auditul financiar"]
["3.8",null,null,null,"Cheltuieli pentru asistenţă tehnică",null,null,null,null,null,null,null,null,null,null,null,null,null,null,null,null,null,null,null,null,null,null,null,null,null,null,null,null,null,null,null,null,null,null,null,null,null,{"$f":"AQ43+AQ46","v":0},null,null,null,null,null,null,null,null,{"$f":"AZ43+AZ46","v":0}]
[null,null,null,null,"3.8.1. Asistenţă tehnică din partea proiectantului",null,null,null,null,null,null,null,null,null,null,null,null,null,null,null,null,null,null,null,null,null,null,null,null,null,null,null,null,null,null,null,null,null,null,null,null,null,{"$f":"AQ44+AQ45","v":0},null,null,null,null,null,null,null,null,{"$f":"AZ44+AZ45","v":0}]
[null,null,null,null,"    1.1. pe perioada de execuţie a lucrărilor"]
[null,null,null,null,"     1.2. pentru participarea proiectantului la fazele incluse în programul de control al\nlucrărilor de execuţie, avizat de către Inspectoratul de Stat în Construcţii"]
[null,null,null,null,"3.8.2 Dirigenţie de şantier, asigurată de personal tehnic de specialitate, autorizat"]
[null,null,null,null,"Total valoare fără TVA",null,null,null,null,null,null,null,null,null,null,null,null,null,null,null,null,null,null,null,null,null,null,null,null,null,null,null,null,null,null,null,null,null,null,null,null,null,{"$f":"AQ42+AQ39+AQ27+AQ26+AQ25+AQ15+AQ11","v":0},null,null,null,null,null,null,null,null,{"$f":"AZ42+AZ39+AZ34+AZ27+AZ26+AZ25+AZ15+AZ11","v":0}]
[null,null,null,null,"Valoare TVA (aferentă cheltuielilor eligibile şi neeligibile)"]
["TOTAL DEVIZ FINANCIAR 1 (inclusiv TVA)",null,null,null,null,null,null,null,null,null,null,null,null,null,null,null,null,null,null,null,null,null,null,null,null,null,null,null,null,null,null,null,null,null,null,null,null,null,null,null,null,null,{"$f":"AQ47+AZ47+AQ48+AZ48","v":0}]

{"sheet":"Anexa 2","index":2,"n_rows":30,"n_cols":52,"rows_kept":30,"cut":false,"hidden":false,"merged":[[11,0,11,41],[11,42,11,50],[11,51,11,60],[5,7,5,60],[6,0,6,60],[7,0,7,60],[8,0,8,60],[9,0,9,3],[9,4,9,41],[9,42,9,60],[1,7,1,41],[2,7,2,41],[2,42,3,60],[3,7,3,41],[4,7,4,41],[4,42,4,50],[4,51,4,60],[10,0,10,41],[10,42,10,50],[10,51,10,60],[14,4,14,41],[14,42,14,50],[14,51,14,60],[15,0,15,3],[15,4,15,41],[15,42,15,50],[15,51,15,60],[12,0,12,3],[12,4,12,41],[12,42,12,50],[12,51,12,60],[13,0,13,3],[13,4,13,41],[13,42,13,50],[13,51,13,60],[14,0,14,3],[16,0,16,3],[16,4,16,41],[16,42,16,50],[16,51,16,60],[17,0,17,3],[17,4,17,41],[17,42,17,50],[17,51,17,60],[18,0,18,60],[19,0,19,3],[19,4,19,41],[19,42,19,50],[19,51,19,60],[20,0,20,3],[20,4,20,41],[20,42,20,50],[20,51,20,60],[21,0,21,60],[22,0,22,3],[22,4,22,41],[22,42,22,50],[22,51,22,60],[28,0,28,41],[28,42,28,50],[28,51,28,60],[23,0,23,3],[23,4,23,41],[23,42,23,50],[23,51,23,60],[24,0,24,3],[24,4,24,41],[24,42,24,50],[24,51,24,60],[25,0,25,3],[25,4,25,41],[25,42,25,50],[25,51,25,60],[29,0,29,41],[29,42,29,60],[26,0,26,3],[26,4,26,41],[26,42,26,50],[26,51,26,60],[27,0,27,41],[27,42,27,50],[27,51,27,60]]}
[]
[null,null,null,null,null,null,null,"MINISTERUL AGRICULTURII ŞI DEZVOLTĂRII RURALE"]
[null,null,null,null,null,null,null,null,null,null,null,null,null,null,null,null,null,null,null,null,null,null,null,null,null,null,null,null,null,null,null,null,null,null,null,null,null,null,null,null,null,null,"Anexa A2\nHG 907/2016"]
[null,null,null,null,null,null,null,"AGENŢIA PENTRU FINANŢAREA INVESTIŢIILOR RURALE"]
[]
[null,null,null,null,null,null,null,"DEVIZ PE OBIECT *"]
[]
[]
["(Descriere obiect de construcţie)"]
["Nr. crt.",null,null,null,"Denumire",null,null,null,null,null,null,null,null,null,null,null,null,null,null,null,null,null,null,null,null,null,null,null,null,null,null,null,null,null,null,null,null,null,null,null,null,null,"Valoarea pe categorii de lucrări, fară TVA - EURO"]
["Cap. 4 + Cheltuieli pentru investiţia de bază",null,null,null,null,null,null,null,null,null,null,null,null,null,null,null,null,null,null,null,null,null,null,null,null,null,null,null,null,null,null,null,null,null,null,null,null,null,null,null,null,null,"Valoare eligibilă",null,null,null,null,null,null,null,null,"Valoare\nneeligibilă"]
["   I - LUCRĂRI DE CONSTRUCŢII ŞI INSTALAŢII"]
["4.1",null,null,null,"Construcţii şi instalaţii"]
[null,null,null,null,"4.1.1 Terasamente, sistematizare pe verticală şi amenajări exterioare"]
[null,null,null,null,"4.1.2 Rezistenţă"]
[null,null,null,null,"4.1.3 Arhitectură"]
[null,null,null,null,"4.1.4 Instalaţii"]
[null,null,null,null,"TOTAL I ( fără TVA)",null,null,null,null,null,null,null,null,null,null,null,null,null,null,null,null,null,null,null,null,null,null,null,null,null,null,null,null,null,null,null,null,null,null,null,null,null,{"$f":"SUM(AQ14:AY17)","v":0},null,null,null,null,null,null,null,null,{"$f":"SUM(AZ14:BI17)","v":0}]
["   II - MONTAJ"]
["4.2",null,null,null,"Montaj utilaje şi echipamente tehnologice"]
[null,null,null,null,"TOTAL II ( fără TVA)",null,null,null,null,null,null,null,null,null,null,null,null,null,null,null,null,null,null,null,null,null,null,null,null,null,null,null,null,null,null,null,null,null,null,null,null,null,{"$f":"SUM(AQ20)","v":0},null,null,null,null,null,null,null,null,{"$f":"SUM(AZ20)","v":0}]
["   III - PROCURARE"]
["4.3",null,null,null,"Utilaje, echipamente tehnologice şi funcţionale care necesită montaj"]
["4.4",null,null,null,"Utilaje, echipamente tehnologice şi funcţionale care nu necesită\nmontaj şi echipamente de transport"]
["4.5",null,null,null,"Dotări"]
["4.6",null,null,null,"Active necorporale"]
[null,null,null,null,"TOTAL III ( fără TVA)",null,null,null,null,null,null,null,null,null,null,null,null,null,null,null,null,null,null,null,null,null,null,null,null,null,null,null,null,null,null,null,null,null,null,null,null,null,{"$f":"SUM(AQ23:AY26)","v":0},null,null,null,null,null,null,null,null,{"$f":"SUM(AZ23:BI26)","v":0}]
["TOTAL ( TOTAL I + TOTAL II +TOTAL III) fără TVA",null,null,null,null,null,null,null,null,null,null,null,null,null,null,null,null,null,null,null,null,null,null,null,null,null,null,null,null,null,null,null,null,null,null,null,null,null,null,null,null,null,{"$f":"AQ27+AQ21+AQ18","v":0},null,null,null,null,null,null,null,null,{"$f":"AZ27+AZ21+AZ18","v":0}]
["TVA aferent cheltuielilor eligibile şi neeligibile"]
["TOTAL DEVIZ PE OBIECT (inclusiv TVA)",null,null,null,null,null,null,null,null,null,null,null,null,null,null,null,null,null,null,null,null,null,null,null,null,null,null,null,null,null,null,null,null,null,null,null,null,null,null,null,null,null,{"$f":"AQ28+AZ28+AQ29+AZ29","v":0}]

{"sheet":"Anexa 3","index":3,"n_rows":41,"n_cols":52,"rows_kept":41,"cut":false,"hidden":false,"merged":[[14,0,14,3],[14,4,14,41],[14,42,14,50],[14,51,14,60],[7,0,7,60],[8,0,8,60],[16,0,16,3],[16,4,16,41],[16,42,16,50],[16,51,16,60],[12,0,12,3],[12,4,12,41],[12,42,12,50],[12,51,12,60],[13,0,13,3],[13,4,13,41],[13,42,13,50],[13,51,13,60],[9,0,9,60],[11,0,11,3],[11,4,11,41],[11,42,11,50],[11,51,11,60],[15,0,15,3],[15,4,15,41],[15,42,15,50],[15,51,15,60],[21,0,21,3],[21,4,21,41],[21,42,21,50],[21,51,21,60],[18,0,18,3],[18,4,18,41],[18,42,18,50],[18,51,18,60],[20,0,20,3],[20,4,20,41],[20,42,20,50],[20,51,20,60],[19,0,19,3],[19,4,19,41],[19,42,19,50],[19,51,19,60],[17,0,17,3],[17,4,17,41],[17,42,17,50],[17,51,17,60],[28,0,28,3],[28,4,28,41],[28,42,28,50],[28,51,28,60],[29,0,29,3],[29,4,29,41],[29,42,29,50],[29,51,29,60],[26,0,26,60],[27,0,27,3],[27,4,27,41],[27,42,27,50],[27,51,27,60],[32,0,32,3],[32,4,32,41],[32,42,32,50],[32,51,32,60],[33,0,33,3],[33,4,33,41],[33,42,33,50],[33,51,33,60],[30,0,30,3],[30,4,30,41],[30,42,30,50],[30,51,30,60],[31,0,31,3],[31,4,31,41],[31,42,31,50],[31,51,31,60],[37,0,37,3],[37,4,37,41],[37,42,37,50],[37,51,37,60],[34,0,34,3],[34,4,34,41],[34,42,34,50],[34,51,34,60],[36,0,36,3],[36,4,36,41],[36,42,36,50],[36,51,36,60],[35,0,35,3],[35,4,35,41],[35,42,35,50],[35,51,35,60],[40,0,40,3],[40,4,40,41],[38,0,38,3],[38,4,38,41],[38,42,38,50],[38,51,38,60],[39,0,39,3],[39,4,39,41],[39,42,39,50],[39,51,39,60],[40,42,40,60],[2,7,2,41],[2,42,3,60],[4,42,4,50],[4,51,4,60],[5,7,5,60],[6,0,6,60],[10,0,10,3],[10,4,10,41],[10,42,10,50],[10,51,10,60],[3,7,3,41],[4,7,4,41],[22,0,22,41],[22,42,22,60],[23,0,23,3],[23,4,23,41],[23,42,23,50],[23,51,23,60],[24,0,24,60],[25,0,25,3],[25,4,25,41],[25,42,25,50],[25,51,25,60]]}
[]
[]
[null,null,null,null,null,null,null,"MINISTERUL AGRICULTURII ŞI DEZVOLTĂRII RURALE",null,null,null,null,null,null,null,null,null,null,null,null,null,null,null,null,null,null,null,null,null,null,null,null,null,null,null,null,null,null,null,null,null,null,"Anexa A3\nHG 907/2016"]
[]
[null,null,null,null,null,null,null,"AGENŢIA PENTRU FINANŢAREA INVESTIŢIILOR RURALE"]
[]
[]
[]
["(Titlu deviz)"]
["Deviz capitolul 2- Cheltuieli pentru asigurarea utilităţilor necesare obiectivului - EURO"]
["Nr.crt",null,null,null,"Specificaţie",null,null,null,null,null,null,null,null,null,null,null,null,null,null,null,null,null,null,null,null,null,null,null,null,null,null,null,null,null,null,null,null,null,null,null,null,null,"Valoare eligibilă",null,null,null,null,null,null,null,null,"Valoare\nneeligibilă"]
[1,null,null,null,"Alimentare cu apă"]
[2,null,null,null,"Canalizare"]
[3,null,null,null,"Alimentare cu gaze naturale"]
[4,null,null,null,"Alimentare cu agent termic"]
[5,null,null,null,"Alimentare cu energie electrică"]
[6,null,null,null,"Telecomunicaţii (telefonie, radio-tv,etc)"]
[7,null,null,null,"Drumuri de acces"]
[8,null,null,null,"Căi ferate industriale"]
[9,null,null,null,"Alte utilități"]
[null,null,null,null,"TOTAL DEVIZ CAPITOLUL 2",null,null,null,null,null,null,null,null,null,null,null,null,null,null,null,null,null,null,null,null,null,null,null,null,null,null,null,null,null,null,null,null,null,null,null,null,null,{"$f":"SUM(AQ12:AY20)","v":0},null,null,null,null,null,null,null,null,{"$f":"SUM(AZ12:BI20)","v":0}]
[null,null,null,null,"Valoare TVA aferentă cheltuielilor eligibile şi neeligibile"]
["TOTAL DEVIZ CAPITOLUL 2 (inclusiv TVA)",null,null,null,null,null,null,null,null,null,null,null,null,null,null,null,null,null,null,null,null,null,null,null,null,null,null,null,null,null,null,null,null,null,null,null,null,null,null,null,null,null,{"$f":"AQ21+AZ21+AQ22+AZ22","v":0}]
[]
[" Deviz capitolul 5 - Alte cheltuieli - EURO"]
["Nr.crt",null,null,null,"Specificaţie",null,null,null,null,null,null,null,null,null,null,null,null,null,null,null,null,null,null,null,null,null,null,null,null,null,null,null,null,null,null,null,null,null,null,null,null,null,"Valoare eligibilă",null,null,null,null,null,null,null,null,"Valoare\nneeligibilă"]
[]
["5.1 ",null,null,null,"Organizare de şantier",null,null,null,null,null,null,null,null,null,null,null,null,null,null,null,null,null,null,null,null,null,null,null,null,null,null,null,null,null,null,null,null,null,null,null,null,null,{"$f":"SUM(AQ29:AY30)","v":0},null,null,null,null,null,null,null,null,{"$f":"SUM(AZ29:BI30)","v":0}]
[null,null,null,null,"5.1.1 Lucrări de construcţii şi instalaţii aferente organizării de şantier"]
[null,null,null,null,"5.1.2 Cheltuieli conexe organizării de şantier"]
["5.2",null,null,null,"Comisioane, cote, taxe, costul creditului",null,null,null,null,null,null,null,null,null,null,null,null,null,null,null,null,null,null,null,null,null,null,null,null,null,null,null,null,null,null,null,null,null,null,null,null,null,{"$f":"SUM(AQ33:AQ36)-AQ35","v":0},null,null,null,null,null,null,null,null,{"$f":"SUM(AZ32:BI36)","v":0}]
[null,null,null,null,"5.2.1. Comisioanele şi dobânzile aferente creditului băncii finanţatoare",null,null,null,null,null,null,null,null,null,null,null,null,null,null,null,null,null,null,null,null,null,null,null,null,null,null,null,null,null,null,null,null,null,null,null,null,null,1]
[null,null,null,null,"5.2.2. Cota aferentă ISC pentru controlul calităţii lucrărilor de\nconstrucţii"]
[null,null,null,null,"5.2.3. Cota aferentă ISC pentru controlul statului în amenajarea teritoriului, urbanism şi pentru autorizarea lucrărilor de construcţii"]
[null,null,null,null,"5.2.4. Cota aferentă Casei Sociale a Constructorilor - CSC"]
[null,null,null,null,"5.2.5. Taxe pentru acorduri, avize conforme şi autorizaţia de construire/desfiinţare"]
["5.3",null,null,null," Cheltuieli diverse si neprevazute"]
["5.3",null,null,null,"Cheltuieli pentru informare și publicitate",null,null,null,null,null,null,null,null,null,null,null,null,null,null,null,null,null,null,null,null,null,null,null,null,null,null,null,null,null,null,null,null,null,null,null,null,null,0,null,null,null,null,null,null,null,null,0]
[null,null,null,null,"TOTAL DEVIZ CAPITOLUL 5",null,null,null,null,null,null,null,null,null,null,null,null,null,null,null,null,null,null,null,null,null,null,null,null,null,null,null,null,null,null,null,null,null,null,null,null,null,{"$f":"AQ28+AQ31+AQ38","v":0},null,null,null,null,null,null,null,null,{"$f":"AZ38+AZ37+AZ31+AZ28","v":0}]
[null,null,null,null,"VALOARE TVA aferentă cheltuielilor eligibile şi neeligibile"]
[null,null,null,null,"TOTAL DEVIZ CAPITOLUL 5 ( inclusiv TVA)",null,null,null,null,null,null,null,null,null,null,null,null,null,null,null,null,null,null,null,null,null,null,null,null,null,null,null,null,null,null,null,null,null,null,null,null,null,{"$f":"AQ39+AZ39+AQ40+AZ40","v":0}]